Workbook

Sheet Rebate Amount
A1: This spreadsheet contains the following: • Agency’s rebate amount for each credit card account (i.e. P-Card, Ghost Card, and Individual Travel Card/Liability Account); • Detailed expenditure list of all FY2016 purchases which includes the full accounting string of each transaction; and • Agency’s actual closing fiscal year revenue breakdown. The rebate has been distributed based on the agency’s actual closing fiscal revenue and the type of purchase.
A2: Client ID | B2: Billing Type | C2: Type | D2: Company # | E2: Name | F2: Account last 4 | G2: Total Rebate Due | H2: Expense Detail % | I2: Budget Account | J2: Amt of Rebate by Expense % | K2: Distribution Percentage | L2: Rebate Amount Being Distributed to: | M2: Amt of Distribution
A3: STATE OF NEVADA--PURCHASE CARD | B3: Corporate | C3: CPB | D3: 6643322 | E3: 810-NVDMV | F3: 2623 | G3: 188.724262 | H3: 0.01078411188 | I3: 4715 | J3: 2.035223556 | K3: 0.5308713019 | L3: HIGHWAY FUND | M3: 1.080441779
A4: ↓ | B4: ↓ | C4: ↓ | D4: 6643322 | E4: 810-NVDMV | F4: ↓ | I4: → | J4: → | K4: 0.4691286981 | L4: AGENCY | M4: 0.9547817774
A5: ↓ | B5: ↓ | C5: ↓ | D5: 6643322 | E5: 810-NVDMV | F5: ↓ | H5: 0.3673047737 | I5: 4716 | J5: 69.31932234 | K5: 0.5205505857 | L5: HIGHWAY FUND | M5: 36.08421384
A6: ↓ | B6: ↓ | C6: ↓ | D6: 6643322 | E6: 810-NVDMV | F6: ↓ | I6: → | J6: → | K6: 0.4794494143 | L6: AGENCY | M6: 33.2351085
A7: ↓ | B7: ↓ | C7: ↓ | D7: 6643322 | E7: 810-NVDMV | F7: ↓ | H7: 0.03971847255 | I7: 4717 | J7: 7.49583942 | K7: 0.1557276518 | L7: HIGHWAY FUND | M7: 1.167309471
A8: ↓ | B8: ↓ | C8: ↓ | D8: 6643322 | E8: 810-NVDMV | F8: ↓ | I8: → | J8: → | K8: 0.8442723482 | L8: AGENCY | M8: 6.328529949
A9: ↓ | B9: ↓ | C9: ↓ | D9: 6643322 | E9: 810-NVDMV | F9: ↓ | H9: 0.08399060118 | I9: 4722 | J9: 15.85106422 | K9: 1 | L9: AGENCY | M9: 15.85106422
A10: ↓ | B10: ↓ | C10: ↓ | D10: 6643322 | E10: 810-NVDMV | F10: ↓ | H10: 0.01245301651 | I10: 4732 | J10: 2.35018635 | K10: 0.9964 | L10: HIGHWAY FUND | M10: 2.341725679
A11: ↓ | B11: ↓ | C11: ↓ | D11: 6643322 | E11: 810-NVDMV | F11: ↓ | I11: → | J11: → | K11: 0.0036 | L11: AGENCY | M11: 0.008460670861
A12: ↓ | B12: ↓ | C12: ↓ | D12: 6643322 | E12: 810-NVDMV | F12: ↓ | H12: 0.1085419616 | I12: 4735 | J12: 20.4845016 | K12: 0.0002473139951 | L12: GENERAL FUND | M12: 0.005066103928
A13: ↓ | B13: ↓ | C13: ↓ | D13: 6643322 | E13: 810-NVDMV | F13: ↓ | I13: → | J13: → | K13: 0.3189764194 | L13: HIGHWAY FUND | M13: 6.534072972
A14: ↓ | B14: ↓ | C14: ↓ | D14: 6643322 | E14: 810-NVDMV | F14: ↓ | I14: → | J14: → | K14: 0.6807762666 | L14: AGENCY | M14: 13.94536252
A15: ↓ | B15: ↓ | C15: ↓ | D15: 6643322 | E15: 810-NVDMV | F15: ↓ | H15: 0.01882679892 | I15: 4740 | J15: 3.553073731 | K15: 0.961679851 | L15: HIGHWAY FUND | M15: =J15*K15 -> 3.416919417
A16: ↓ | B16: ↓ | C16: ↓ | D16: 6643322 | E16: 810-NVDMV | F16: ↓ | I16: → | J16: → | K16: 0.03832014895 | L16: AGENCY | M16: =J15*K16 -> 0.1361543146
A17: ↓ | B17: ↓ | C17: ↓ | D17: 6643322 | E17: 810-NVDMV | F17: ↓ | H17: 0.0008563156926 | I17: 4742 | J17: 0.1616075471 | K17: 0.9974760296 | L17: HIGHWAY FUND | M17: =J17*K17 -> 0.1611996545
A18: ↓ | B18: ↓ | C18: ↓ | D18: 6643322 | E18: 810-NVDMV | F18: ↓ | I18: → | J18: → | K18: 0.002523970403 | L18: AGENCY | M18: =J17*K18 -> 0.0004078926659
A19: ↓ | B19: ↓ | C19: ↓ | D19: 6643322 | E19: 810-NVDMV | F19: ↓ | H19: 0.1798232589 | I19: 4744 | J19: 33.93701182 | K19: 0.5759808933 | L19: HIGHWAY FUND | M19: 19.54707038
A20: ↓ | B20: ↓ | C20: ↓ | D20: 6643322 | E20: 810-NVDMV | F20: ↓ | I20: → | J20: → | K20: 0.4240191067 | L20: AGENCY | M20: 14.38994144
A21: ↓ | B21: ↓ | C21: ↓ | D21: 6643322 | E21: 810-NVDMV | F21: ↓ | H21: 0.1777006891 | I21: 4745 | J21: 33.53643141 | K21: 0.3185 | L21: HIGHWAY FUND | M21: 10.6813534
A22: ↓ | B22: ↓ | C22: ↓ | D22: 6643322 | E22: 810-NVDMV | F22: ↓ | I22: → | J22: → | K22: 0.6815 | L22: AGENCY | M22: 22.85507801
A23: STATE OF NEVADA--TRAVEL CARD | B23: Corporate | C23: CTA | D23: 6643323 | E23: 810-NVDMV | F23: 1848 | G23: 1017.185259 | H23: 0.08928113361 | I23: 4715 | J23: 90.81545302 | K23: 0.5308713019 | L23: HIGHWAY FUND | M23: 48.21131777
A24: ↓ | B24: ↓ | C24: ↓ | D24: 6643323 | E24: 810-NVDMV | F24: ↓ | I24: → | J24: → | K24: 0.4691286981 | L24: AGENCY | M24: 42.60413524
A25: ↓ | B25: ↓ | C25: ↓ | D25: 6643323 | E25: 810-NVDMV | F25: ↓ | H25: 0.06229016429 | I25: 4716 | J25: 63.3606369 | K25: 0.5205505857 | L25: HIGHWAY FUND | M25: 32.98241665
A26: ↓ | B26: ↓ | C26: ↓ | D26: 6643323 | E26: 810-NVDMV | F26: ↓ | I26: → | J26: → | K26: 0.4794494143 | L26: AGENCY | M26: 30.37822025
A27: ↓ | B27: ↓ | C27: ↓ | D27: 6643323 | E27: 810-NVDMV | F27: ↓ | H27: 0.4335039746 | I27: 4717 | J27: 440.9538527 | K27: 0.1557276518 | L27: HIGHWAY FUND | M27: 68.66870804
A28: ↓ | B28: ↓ | C28: ↓ | D28: 6643323 | E28: 810-NVDMV | F28: ↓ | I28: → | J28: → | K28: 0.8442723482 | L28: AGENCY | M28: 372.2851447
A29: ↓ | B29: ↓ | C29: ↓ | D29: 6643323 | E29: 810-NVDMV | F29: ↓ | H29: 0.04385666133 | I29: 4722 | J29: 44.61034941 | K29: 1 | L29: AGENCY | M29: 44.61034941
A30: ↓ | B30: ↓ | C30: ↓ | D30: 6643323 | E30: 810-NVDMV | F30: ↓ | H30: 0.01954285657 | I30: 4732 | J30: 19.87870562 | K30: 0.9964 | L30: HIGHWAY FUND | M30: 19.80714228
A31: ↓ | B31: ↓ | C31: ↓ | D31: 6643323 | E31: 810-NVDMV | F31: ↓ | I31: → | J31: → | K31: 0.0036 | L31: AGENCY | M31: 0.07156334022
A32: ↓ | B32: ↓ | C32: ↓ | D32: 6643323 | E32: 810-NVDMV | F32: ↓ | H32: 0.1402713752 | I32: 4735 | J32: 142.6819751 | K32: 0.0002473139951 | L32: GENERAL FUND | M32: 0.0352872493
A33: ↓ | B33: ↓ | C33: ↓ | D33: 6643323 | E33: 810-NVDMV | F33: ↓ | I33: → | J33: → | K33: 0.3189764194 | L33: HIGHWAY FUND | M33: 45.51218554
A34: ↓ | B34: ↓ | C34: ↓ | D34: 6643323 | E34: 810-NVDMV | F34: ↓ | I34: → | J34: → | K34: 0.6807762666 | L34: AGENCY | M34: 97.13450235
A35: ↓ | B35: ↓ | C35: ↓ | D35: 6643323 | E35: 810-NVDMV | F35: ↓ | H35: 0.05489440623 | I35: 4740 | J35: 55.83778082 | K35: 0.961679851 | L35: HIGHWAY FUND | M35: 53.69806874
A36: ↓ | B36: ↓ | C36: ↓ | D36: 6643323 | E36: 810-NVDMV | F36: ↓ | I36: → | J36: → | K36: 0.03832014895 | L36: AGENCY | M36: 2.139712078
A37: ↓ | B37: ↓ | C37: ↓ | D37: 6643323 | E37: 810-NVDMV | F37: ↓ | H37: 0.01779655449 | I37: 4741 | J37: 18.10239289 | K37: 0.001756585831 | L37: GENERAL FUND | M37: 0.03179840686
A38: ↓ | B38: ↓ | C38: ↓ | D38: 6643323 | E38: 810-NVDMV | F38: ↓ | I38: → | J38: → | K38: 0.4681106712 | L38: HIGHWAY FUND | M38: 8.473923288
A39: ↓ | B39: ↓ | C39: ↓ | D39: 6643323 | E39: 810-NVDMV | F39: ↓ | I39: → | J39: → | K39: 0.530132743 | L39: AGENCY | M39: 9.596671198
A40: ↓ | B40: ↓ | C40: ↓ | D40: 6643323 | E40: 810-NVDMV | F40: ↓ | H40: 0.046265786 | I40: 4742 | J40: 47.06087552 | K40: 0.9974760296 | L40: HIGHWAY FUND | M40: 46.94209526
A41: ↓ | B41: ↓ | C41: ↓ | D41: 6643323 | E41: 810-NVDMV | F41: ↓ | I41: → | J41: → | K41: 0.002523970403 | L41: AGENCY | M41: 0.1187802569
A42: ↓ | B42: ↓ | C42: ↓ | D42: 6643323 | E42: 810-NVDMV | F42: ↓ | H42: 0.09229708764 | I42: 4745 | J42: 93.883237 | K42: 0.3257 | L42: HIGHWAY FUND | M42: 29.90181098
A43: ↓ | B43: ↓ | C43: ↓ | D43: 6643323 | E43: 810-NVDMV | F43: ↓ | I43: → | J43: → | K43: 0.6743 | L43: AGENCY | M43: 63.98142602
A45: The Procurement Card (P-Card) and Corporate Ghost Card rebate amount has been disbursed based upon the agency’s funding source as follows: General Fund Appropriations – The General Fund Account has received the rebate amount. Highway Fund Appropriation – The Highway Fund Account has received the rebate amount.
A46: Fees and/or Internal Services Funds and Federal Grants – The agency will receive a Journal Voucher prepared by the Department of Administration, Administrative Services Division with the intended coding of the rebate associated with these purchases and the agency will need to review, sign and forward the original document to the Controller’s Office for keying. In addition, it is the agency’s responsibility to offset future grant draws in the current fiscal year and/or return funds if the grant has expired.
A48: STATE OF NEVADA--CORP COMBINED | B48: Individual | C48: ICL | D48: 6643324 | E48: 810-NVDMV IL | F48: 6360 | G48: 306.587716 | H48: → | I48: → | J48: → | K48: 1 | L48: GENERAL FUND | M48: =G48 -> 306.587716
A49: • The Procurement Card (P-Card) and Corporate Ghost Card rebate amount has been disbursed based upon the agency’s funding source as follows: General Fund Appropriations – The General Fund Account has received the rebate amount.

Sheet Exp Detail
A1: Accounting Year:2016
A3: Transaction Number | B3: Fund | C3: Agency | D3: Org Code | E3: Sub Org | F3: Budget Account Code | G3: Cat | H3: Activity Code | I3: Function | J3: Job No. | K3: Object Code | L3: Dollar Amount | M3: Vendor Number | N3: Vendor Name | O3: Line Description | P3: Acceptance Date | Q3: Account Type
A4: TC810344501 | B4: 201 | C4: 810 | D4: 0000 | E4: - | F4: 4715 | G4: 03 | H4: - | I4: - | J4: - | K4: 6250 | L4: 374.66 | M4: T81090039 | N4: FIA CARD SERVICES NA | O4: SOUTHWES 5262160508308 | P4: 2015-12-10 | Q4: 22
A5: TC810100601 | B5: 201 | C5: 810 | D5: 0000 | E5: - | G5: 02 | H5: - | I5: - | J5: - | K5: 6150 | L5: 350.2 | M5: T81090039 | N5: FIA CARD SERVICES NA | O5: ALASKA A 0272110407673 - P | P5: 2016-04-11 | Q5: 22
A6: TC810191601 | B6: 201 | C6: 810 | D6: 0000 | E6: - | G6: 03 | H6: - | I6: - | J6: - | K6: 6250 | L6: 474.48 | M6: T81090039 | N6: FIA CARD SERVICES NA | O6: SOUTHWES 5262421701819 - P | P6: 2016-07-11 | Q6: 22
A7: TC810253501 | B7: 201 | C7: 810 | D7: 0000 | E7: - | G7: 03 | H7: - | I7: - | J7: - | K7: 6250 | L7: 438.42 | M7: T81090039 | N7: FIA CARD SERVICES NA | O7: SOUTHWES 5262132001148 | P7: 2015-09-10 | Q7: 22
A8: TC810253501 | B8: 201 | C8: 810 | D8: 0000 | E8: - | G8: 03 | H8: - | I8: - | J8: - | K8: 6250 | L8: 438.42 | M8: T81090039 | N8: FIA CARD SERVICES NA | O8: SOUTHWES 5262132002661 | P8: 2015-09-10 | Q8: 22
A9: TC810283501 | B9: 201 | C9: 810 | D9: 0000 | E9: - | G9: 03 | H9: - | I9: - | J9: - | K9: 6250 | L9: 386.66 | M9: T81090039 | N9: FIA CARD SERVICES NA | O9: SOUTHWES 5262140494378 | P9: 2015-10-12 | Q9: 22
A10: TC810314501 | B10: 201 | C10: 810 | D10: 0000 | E10: - | G10: 03 | H10: - | I10: - | J10: - | K10: 6250 | L10: 303 | M10: T81090039 | N10: FIA CARD SERVICES NA | O10: SOUTHWES 5262149315824 | P10: 2015-11-12 | Q10: 22
A11: TC810314501 | B11: 201 | C11: 810 | D11: 0000 | E11: - | G11: 03 | H11: - | I11: - | J11: - | K11: 6250 | L11: 303 | M11: T81090039 | N11: FIA CARD SERVICES NA | O11: SOUTHWES 5262149313448 | P11: 2015-11-12 | Q11: 22
A12: TC810314501 | B12: 201 | C12: 810 | D12: 0000 | E12: - | G12: 03 | H12: - | I12: - | J12: - | K12: 6250 | L12: 200 | M12: T81090039 | N12: FIA CARD SERVICES NA | O12: SOUTHWES 5262147982028 | P12: 2015-11-12 | Q12: 22
A13: TC810344501 | B13: 201 | C13: 810 | D13: 0000 | E13: - | G13: 03 | H13: - | I13: - | J13: - | K13: 6250 | L13: 386.63 | M13: T81090039 | N13: FIA CARD SERVICES NA | O13: SOUTHWES 5262160508945 | P13: 2015-12-10 | Q13: 22
A14: TC810344501 | B14: 201 | C14: 810 | D14: 0000 | E14: - | G14: 03 | H14: - | I14: - | J14: - | K14: 6250 | L14: 386.63 | M14: T81090039 | N14: FIA CARD SERVICES NA | O14: SOUTHWES 5262160510382 | P14: 2015-12-10 | Q14: 22
A15: TC810344501 | B15: 201 | C15: 810 | D15: 0000 | E15: - | G15: 03 | H15: - | I15: - | J15: - | K15: 6250 | L15: 374.66 | M15: T81090039 | N15: FIA CARD SERVICES NA | O15: SOUTHWES 5262160507344 | P15: 2015-12-10 | Q15: 22
A16: BA810161601 | B16: 201 | C16: 810 | D16: 0000 | E16: - | G16: 04 | H16: - | I16: - | J16: - | K16: 7027 | L16: 59.6 | M16: T81090039 | N16: FIA CARD SERVICES NA | O16: THE HOME DEPOT 3312 - Purch | P16: 2016-06-13 | Q16: 22
A17: BA810161601 | B17: 201 | C17: 810 | D17: 0000 | E17: - | G17: 04 | H17: - | I17: - | J17: - | K17: 7027 | L17: 18.97 | M17: T81090039 | N17: FIA CARD SERVICES NA | O17: THE HOME DEPOT 3312 - Purch | P17: 2016-06-13 | Q17: 22
A18: BA810041601 | B18: 201 | C18: 810 | D18: 0000 | E18: - | G18: 26 | H18: - | I18: - | J18: - | K18: 7073 | L18: 99 | M18: T81090039 | N18: FIA CARD SERVICES NA | O18: APL APPLEONLINESTOREUS - Pu | P18: 2016-02-11 | Q18: 22
L19: Sum: 4,594.33
A20: TC810069601 | B20: 201 | C20: 810 | D20: 0000 | E20: - | F20: 4716 | G20: 02 | H20: - | I20: - | J20: - | K20: 6150 | L20: 265.2 | M20: T81090039 | N20: FIA CARD SERVICES NA | O20: ALASKA A 0272187334280 - P | P20: 2016-03-10 | Q20: 22
A21: BA810161601 | B21: 201 | C21: 810 | D21: 0000 | E21: - | G21: 04 | H21: - | I21: - | J21: - | K21: 7302 | L21: 3000 | M21: T81090039 | N21: FIA CARD SERVICES NA | O21: ATLASSIAN - Purchase | P21: 2016-06-13 | Q21: 22
A22: BA810161601 | B22: 201 | C22: 810 | D22: 0000 | E22: - | G22: 04 | H22: - | I22: - | J22: - | K22: 7302 | L22: 3000 | M22: T81090039 | N22: FIA CARD SERVICES NA | O22: ATLASSIAN - Purchase | P22: 2016-06-13 | Q22: 22
A23: BA810161601 | B23: 201 | C23: 810 | D23: 0000 | E23: - | G23: 04 | H23: - | I23: - | J23: - | K23: 7302 | L23: 24 | M23: T81090039 | N23: FIA CARD SERVICES NA | O23: INTERNATIONAL TRANSACTION - | P23: 2016-06-13 | Q23: 22
A24: BA810161601 | B24: 201 | C24: 810 | D24: 0000 | E24: - | G24: 04 | H24: - | I24: - | J24: - | K24: 7302 | L24: 24 | M24: T81090039 | N24: FIA CARD SERVICES NA | O24: INTERNATIONAL TRANSACTION - | P24: 2016-06-13 | Q24: 22
A25: TC810010601 | B25: 201 | C25: 810 | D25: 0000 | E25: - | G25: 02 | H25: - | I25: - | J25: - | K25: 6150 | L25: 117.1 | M25: T81090039 | N25: FIA CARD SERVICES NA | O25: undefined | P25: 2016-01-11 | Q25: 22
A26: TC810010601 | B26: 201 | C26: 810 | D26: 0000 | E26: - | G26: 03 | H26: - | I26: - | J26: - | K26: 6250 | L26: 330.92 | M26: T81090039 | N26: FIA CARD SERVICES NA | O26: undefined | P26: 2016-01-11 | Q26: 22
A27: TC810010601 | B27: 201 | C27: 810 | D27: 0000 | E27: - | G27: 03 | H27: - | I27: - | J27: - | K27: 6250 | L27: 386.63 | M27: T81090039 | N27: FIA CARD SERVICES NA | O27: undefined | P27: 2016-01-11 | Q27: 22
A28: TC810010601 | B28: 201 | C28: 810 | D28: 0000 | E28: - | G28: 02 | H28: - | I28: - | J28: - | K28: 6150 | L28: 1035.8 | M28: T81090039 | N28: FIA CARD SERVICES NA | O28: undefined | P28: 2016-01-11 | Q28: 22
A29: TC810069601 | B29: 201 | C29: 810 | D29: 0000 | E29: - | G29: 02 | H29: - | I29: - | J29: - | K29: 6150 | L29: 250.2 | M29: T81090039 | N29: FIA CARD SERVICES NA | O29: ALASKA A 0272187333105 - P | P29: 2016-03-10 | Q29: 22
A30: TC810161601 | B30: 201 | C30: 810 | D30: 0000 | E30: - | G30: 03 | H30: - | I30: - | J30: - | K30: 6250 | L30: 347.83 | M30: T81090039 | N30: FIA CARD SERVICES NA | O30: SOUTHWES 5262405852095 - P | P30: 2016-06-13 | Q30: 22
A31: TC810161601 | B31: 201 | C31: 810 | D31: 0000 | E31: - | G31: 03 | H31: - | I31: - | J31: - | K31: 6250 | L31: 347.83 | M31: T81090039 | N31: FIA CARD SERVICES NA | O31: SOUTHWES 5262405851022 - P | P31: 2016-06-13 | Q31: 22
L32: Sum: 9,129.51
A33: TC810100601 | B33: 201 | C33: 810 | D33: 0000 | E33: - | F33: 4717 | G33: 10 | H33: - | I33: - | J33: - | K33: 6250 | L33: 49.68 | M33: T81090039 | N33: FIA CARD SERVICES NA | O33: SOUTHWES 5262190330781 - P | P33: 2016-04-11 | Q33: 22
A34: TC810069601 | B34: 201 | C34: 810 | D34: 0000 | E34: - | G34: 30 | H34: - | I34: - | J34: - | K34: 6150 | L34: 602.2 | M34: T81090039 | N34: FIA CARD SERVICES NA | O34: AMERICAN 00123635331993 - | P34: 2016-03-10 | Q34: 22
A35: TC810069601 | B35: 201 | C35: 810 | D35: 0000 | E35: - | G35: 02 | H35: - | I35: - | J35: - | K35: 6150 | L35: 280.2 | M35: T81090039 | N35: FIA CARD SERVICES NA | O35: ALASKA A 0272187831908 - P | P35: 2016-03-10 | Q35: 22
A36: TC810222501 | B36: 201 | C36: 810 | D36: 0000 | E36: - | G36: 10 | H36: - | I36: - | J36: - | K36: 6150 | L36: 541.2 | M36: T81090039 | N36: FIA CARD SERVICES NA | O36: AMERICAN 00123066528920 | P36: 2015-08-10 | Q36: 22
A37: TC810222501 | B37: 201 | C37: 810 | D37: 0000 | E37: - | G37: 10 | H37: - | I37: - | J37: - | K37: 6150 | L37: 528.27 | M37: T81090039 | N37: FIA CARD SERVICES NA | O37: SOUTHWES 5262128598845 | P37: 2015-08-10 | Q37: 22
A38: TC810222501 | B38: 201 | C38: 810 | D38: 0000 | E38: - | G38: 10 | H38: - | I38: - | J38: - | K38: 6150 | L38: 496 | M38: T81090039 | N38: FIA CARD SERVICES NA | O38: SOUTHWES 5262128598242 | P38: 2015-08-10 | Q38: 22
A39: TC810222501 | B39: 201 | C39: 810 | D39: 0000 | E39: - | G39: 02 | H39: - | I39: - | J39: - | K39: 6150 | L39: 456.2 | M39: T81090039 | N39: FIA CARD SERVICES NA | O39: USAIRWAY 03776633167016 | P39: 2015-08-10 | Q39: 22
A40: TC810222501 | B40: 201 | C40: 810 | D40: 0000 | E40: - | G40: 02 | H40: - | I40: - | J40: - | K40: 6150 | L40: 191 | M40: T81090039 | N40: FIA CARD SERVICES NA | O40: SOUTHWES 5262123996085 | P40: 2015-08-10 | Q40: 22
A41: TC810222501 | B41: 201 | C41: 810 | D41: 0000 | E41: - | G41: 02 | H41: - | I41: - | J41: - | K41: 6150 | L41: 162 | M41: T81090039 | N41: FIA CARD SERVICES NA | O41: SOUTHWES 5262123999488 | P41: 2015-08-10 | Q41: 22
A42: TC810222501 | B42: 201 | C42: 810 | D42: 0000 | E42: - | G42: 02 | H42: - | I42: - | J42: - | K42: 6150 | L42: 33 | M42: T81090039 | N42: FIA CARD SERVICES NA | O42: EXPEDIA 1110325050424 | P42: 2015-08-10 | Q42: 22
A43: TC810222501 | B43: 201 | C43: 810 | D43: 0000 | E43: - | G43: 10 | H43: - | I43: - | J43: - | K43: 6150 | L43: 18.95 | M43: T81090039 | N43: FIA CARD SERVICES NA | O43: AMERICAN 00106151676940 | P43: 2015-08-10 | Q43: 22
A44: TC810100601 | B44: 201 | C44: 810 | D44: 0000 | E44: - | G44: 02 | H44: - | I44: - | J44: - | K44: 6150 | L44: 262.98 | M44: T81090039 | N44: FIA CARD SERVICES NA | O44: SOUTHWES 5262194958406 - P | P44: 2016-04-11 | Q44: 22
A45: TC810100601 | B45: 201 | C45: 810 | D45: 0000 | E45: - | G45: 02 | H45: - | I45: - | J45: - | K45: 6150 | L45: 371.96 | M45: T81090039 | N45: FIA CARD SERVICES NA | O45: SOUTHWES 5262188873772 - P | P45: 2016-04-11 | Q45: 22
A46: TC810100601 | B46: 201 | C46: 810 | D46: 0000 | E46: - | G46: 02 | H46: - | I46: - | J46: - | K46: 6150 | L46: 371.96 | M46: T81090039 | N46: FIA CARD SERVICES NA | O46: SOUTHWES 5262188868180 - P | P46: 2016-04-11 | Q46: 22
A47: TC810100601 | B47: 201 | C47: 810 | D47: 0000 | E47: - | G47: 02 | H47: - | I47: - | J47: - | K47: 6150 | L47: 419.71 | M47: T81090039 | N47: FIA CARD SERVICES NA | O47: SOUTHWES 5262194960344 - P | P47: 2016-04-11 | Q47: 22
A48: TC810100601 | B48: 201 | C48: 810 | D48: 0000 | E48: - | G48: 30 | H48: - | I48: - | J48: - | K48: 6150 | L48: 437.96 | M48: T81090039 | N48: FIA CARD SERVICES NA | O48: SOUTHWES 5262193454542 - P | P48: 2016-04-11 | Q48: 22
A49: TC810100601 | B49: 201 | C49: 810 | D49: 0000 | E49: - | G49: 10 | H49: - | I49: - | J49: - | K49: 6150 | L49: 588.95 | M49: T81090039 | N49: FIA CARD SERVICES NA | O49: SOUTHWES 5262190346516 - P | P49: 2016-04-11 | Q49: 22
A50: TC810100601 | B50: 201 | C50: 810 | D50: 0000 | E50: - | G50: 10 | H50: - | I50: - | J50: - | K50: 6150 | L50: 588.95 | M50: T81090039 | N50: FIA CARD SERVICES NA | O50: SOUTHWES 5262190348468 - P | P50: 2016-04-11 | Q50: 22
A51: TC810100601 | B51: 201 | C51: 810 | D51: 0000 | E51: - | G51: 10 | H51: - | I51: - | J51: - | K51: 6150 | L51: 601.94 | M51: T81090039 | N51: FIA CARD SERVICES NA | O51: SOUTHWES 5262195043980 - P | P51: 2016-04-11 | Q51: 22
A52: TC810130601 | B52: 201 | C52: 810 | D52: 0000 | E52: - | G52: 02 | H52: - | I52: - | J52: - | K52: 6150 | L52: 372.96 | M52: T81090039 | N52: FIA CARD SERVICES NA | O52: SOUTHWES 5262197365841 - P | P52: 2016-05-10 | Q52: 22
A53: TC810222501 | B53: 201 | C53: 810 | D53: 0000 | E53: - | G53: 10 | H53: - | I53: - | J53: - | K53: 6150 | L53: 695 | M53: T81090039 | N53: FIA CARD SERVICES NA | O53: AMERICAN 00123066645870 | P53: 2015-08-10 | Q53: 22
A54: TC810314501 | B54: 201 | C54: 810 | D54: 0000 | E54: - | G54: 10 | H54: - | I54: - | J54: - | K54: 6150 | L54: 735.64 | M54: T81090039 | N54: FIA CARD SERVICES NA | O54: SOUTHWES 5262149279060 | P54: 2015-11-12 | Q54: 22
A55: TC810314501 | B55: 201 | C55: 810 | D55: 0000 | E55: - | G55: 10 | H55: - | I55: - | J55: - | K55: 6150 | L55: 764.65 | M55: T81090039 | N55: FIA CARD SERVICES NA | O55: SOUTHWES 5262149285447 | P55: 2015-11-12 | Q55: 22
A56: TC810283501 | B56: 201 | C56: 810 | D56: 0000 | E56: - | G56: 02 | H56: - | I56: - | J56: - | K56: 6150 | L56: 22.05 | M56: T81090039 | N56: FIA CARD SERVICES NA | O56: AMERICAN 00106167253130 | P56: 2015-10-12 | Q56: 22
A57: TC810253501 | B57: 201 | C57: 810 | D57: 0000 | E57: - | G57: 10 | H57: - | I57: - | J57: - | K57: 6150 | L57: 572 | M57: T81090039 | N57: FIA CARD SERVICES NA | O57: SOUTHWES 5262129135508 | P57: 2015-09-10 | Q57: 22
A58: TC810253501 | B58: 201 | C58: 810 | D58: 0000 | E58: - | G58: 10 | H58: - | I58: - | J58: - | K58: 6150 | L58: 328 | M58: T81090039 | N58: FIA CARD SERVICES NA | O58: SOUTHWES 5262136632020 | P58: 2015-09-10 | Q58: 22
A59: TC810253501 | B59: 201 | C59: 810 | D59: 0000 | E59: - | G59: 10 | H59: - | I59: - | J59: - | K59: 6150 | L59: 328 | M59: T81090039 | N59: FIA CARD SERVICES NA | O59: SOUTHWES 5262136631252 | P59: 2015-09-10 | Q59: 22
A60: TC810283501 | B60: 201 | C60: 810 | D60: 0000 | E60: - | G60: 10 | H60: - | I60: - | J60: - | K60: 6150 | L60: 800 | M60: T81090039 | N60: FIA CARD SERVICES NA | O60: SOUTHWES 5262143523102 | P60: 2015-10-12 | Q60: 22
A61: TC810283501 | B61: 201 | C61: 810 | D61: 0000 | E61: - | G61: 10 | H61: - | I61: - | J61: - | K61: 6150 | L61: 800 | M61: T81090039 | N61: FIA CARD SERVICES NA | O61: SOUTHWES 5262143524019 | P61: 2015-10-12 | Q61: 22
A62: TC810283501 | B62: 201 | C62: 810 | D62: 0000 | E62: - | G62: 10 | H62: - | I62: - | J62: - | K62: 6150 | L62: 777.75 | M62: T81090039 | N62: FIA CARD SERVICES NA | O62: SOUTHWES 5262139135989 | P62: 2015-10-12 | Q62: 22
A63: TC810283501 | B63: 201 | C63: 810 | D63: 0000 | E63: - | G63: 02 | H63: - | I63: - | J63: - | K63: 6150 | L63: 402 | M63: T81090039 | N63: FIA CARD SERVICES NA | O63: AMERICAN 00123559109540 | P63: 2015-10-12 | Q63: 22
A64: TC810283501 | B64: 201 | C64: 810 | D64: 0000 | E64: - | G64: 02 | H64: - | I64: - | J64: - | K64: 6150 | L64: 380.6 | M64: T81090039 | N64: FIA CARD SERVICES NA | O64: DELTA 00623209779872 | P64: 2015-10-12 | Q64: 22
A65: TC810283501 | B65: 201 | C65: 810 | D65: 0000 | E65: - | G65: 02 | H65: - | I65: - | J65: - | K65: 6150 | L65: 380.6 | M65: T81090039 | N65: FIA CARD SERVICES NA | O65: DELTA 00623206415856 | P65: 2015-10-12 | Q65: 22
A66: TC810283501 | B66: 201 | C66: 810 | D66: 0000 | E66: - | G66: 02 | H66: - | I66: - | J66: - | K66: 6150 | L66: 329.6 | M66: T81090039 | N66: FIA CARD SERVICES NA | O66: DELTA 00623200277140 | P66: 2015-10-12 | Q66: 22
A67: TC810283501 | B67: 201 | C67: 810 | D67: 0000 | E67: - | G67: 02 | H67: - | I67: - | J67: - | K67: 6150 | L67: 324 | M67: T81090039 | N67: FIA CARD SERVICES NA | O67: AMERICAN 00123565826240 | P67: 2015-10-12 | Q67: 22
A68: TC810283501 | B68: 201 | C68: 810 | D68: 0000 | E68: - | G68: 10 | H68: - | I68: - | J68: - | K68: 6150 | L68: 247.97 | M68: T81090039 | N68: FIA CARD SERVICES NA | O68: JETBLUE 27921374999306 | P68: 2015-10-12 | Q68: 22
A69: TC810283501 | B69: 201 | C69: 810 | D69: 0000 | E69: - | G69: 02 | H69: - | I69: - | J69: - | K69: 6150 | L69: 203.5 | M69: T81090039 | N69: FIA CARD SERVICES NA | O69: SOUTHWES 5262141619236 | P69: 2015-10-12 | Q69: 22
A70: TC810283501 | B70: 201 | C70: 810 | D70: 0000 | E70: - | G70: 02 | H70: - | I70: - | J70: - | K70: 6150 | L70: 203.5 | M70: T81090039 | N70: FIA CARD SERVICES NA | O70: SOUTHWES 5262141661088 | P70: 2015-10-12 | Q70: 22
A71: TC810283501 | B71: 201 | C71: 810 | D71: 0000 | E71: - | G71: 02 | H71: - | I71: - | J71: - | K71: 6150 | L71: 203.5 | M71: T81090039 | N71: FIA CARD SERVICES NA | O71: SOUTHWES 5262141663299 | P71: 2015-10-12 | Q71: 22
A72: TC810283501 | B72: 201 | C72: 810 | D72: 0000 | E72: - | G72: 02 | H72: - | I72: - | J72: - | K72: 6150 | L72: 203.5 | M72: T81090039 | N72: FIA CARD SERVICES NA | O72: SOUTHWES 5262141664963 | P72: 2015-10-12 | Q72: 22
A73: TC810069601 | B73: 201 | C73: 810 | D73: 0000 | E73: - | G73: 30 | H73: - | I73: - | J73: - | K73: 6250 | L73: 57 | M73: T81090039 | N73: FIA CARD SERVICES NA | O73: SOUTHWES 5262178017056 - P | P73: 2016-03-10 | Q73: 22
A74: TC810222501 | B74: 201 | C74: 810 | D74: 0000 | E74: - | G74: 10 | H74: - | I74: - | J74: - | K74: 6250 | L74: 394.2 | M74: T81090039 | N74: FIA CARD SERVICES NA | O74: SOUTHWES 5262121982269 | P74: 2015-08-10 | Q74: 22
A75: TC810222501 | B75: 201 | C75: 810 | D75: 0000 | E75: - | G75: 03 | H75: - | I75: - | J75: - | K75: 6250 | L75: 220 | M75: T81090039 | N75: FIA CARD SERVICES NA | O75: SOUTHWES 5262122534469 | P75: 2015-08-10 | Q75: 22
A76: TC810100601 | B76: 201 | C76: 810 | D76: 0000 | E76: - | G76: 03 | H76: - | I76: - | J76: - | K76: 6250 | L76: 201.96 | M76: T81090039 | N76: FIA CARD SERVICES NA | O76: SOUTHWES 5262188491129 - P | P76: 2016-04-11 | Q76: 22
A77: TC810100601 | B77: 201 | C77: 810 | D77: 0000 | E77: - | G77: 03 | H77: - | I77: - | J77: - | K77: 6250 | L77: 201.96 | M77: T81090039 | N77: FIA CARD SERVICES NA | O77: SOUTHWES 5262188493429 - P | P77: 2016-04-11 | Q77: 22
A78: TC810100601 | B78: 201 | C78: 810 | D78: 0000 | E78: - | G78: 03 | H78: - | I78: - | J78: - | K78: 6250 | L78: 341.7 | M78: T81090039 | N78: FIA CARD SERVICES NA | O78: SOUTHWES 5262188514741 - P | P78: 2016-04-11 | Q78: 22
A79: TC810130601 | B79: 201 | C79: 810 | D79: 0000 | E79: - | G79: 10 | H79: - | I79: - | J79: - | K79: 6250 | L79: 335.96 | M79: T81090039 | N79: FIA CARD SERVICES NA | O79: SOUTHWES 5262401240638 - P | P79: 2016-05-10 | Q79: 22
A80: TC810161601 | B80: 201 | C80: 810 | D80: 0000 | E80: - | G80: 30 | H80: - | I80: - | J80: - | K80: 6250 | L80: 70.59 | M80: T81090039 | N80: FIA CARD SERVICES NA | O80: SOUTHWES 5262412673406 - P | P80: 2016-06-13 | Q80: 22
A81: TC810161601 | B81: 201 | C81: 810 | D81: 0000 | E81: - | G81: 30 | H81: - | I81: - | J81: - | K81: 6250 | L81: 283.15 | M81: T81090039 | N81: FIA CARD SERVICES NA | O81: SOUTHWES 5262412671816 - P | P81: 2016-06-13 | Q81: 22
A82: TC810344501 | B82: 201 | C82: 810 | D82: 0000 | E82: - | G82: 30 | H82: - | I82: - | J82: - | K82: 6250 | L82: 199.96 | M82: T81090039 | N82: FIA CARD SERVICES NA | O82: SOUTHWES 5262161382155 | P82: 2015-12-10 | Q82: 22
A83: TC810344501 | B83: 201 | C83: 810 | D83: 0000 | E83: - | G83: 30 | H83: - | I83: - | J83: - | K83: 6250 | L83: 199.96 | M83: T81090039 | N83: FIA CARD SERVICES NA | O83: SOUTHWES 5262161380128 | P83: 2015-12-10 | Q83: 22
A84: TC810344501 | B84: 201 | C84: 810 | D84: 0000 | E84: - | G84: 30 | H84: - | I84: - | J84: - | K84: 6250 | L84: 199.96 | M84: T81090039 | N84: FIA CARD SERVICES NA | O84: SOUTHWES 5262161382770 | P84: 2015-12-10 | Q84: 22
A85: TC810344501 | B85: 201 | C85: 810 | D85: 0000 | E85: - | G85: 30 | H85: - | I85: - | J85: - | K85: 6250 | L85: 199.96 | M85: T81090039 | N85: FIA CARD SERVICES NA | O85: SOUTHWES 5262161381615 | P85: 2015-12-10 | Q85: 22
A86: TC810344501 | B86: 201 | C86: 810 | D86: 0000 | E86: - | G86: 03 | H86: - | I86: - | J86: - | K86: 6250 | L86: 309.67 | M86: T81090039 | N86: FIA CARD SERVICES NA | O86: SOUTHWES 5262154238408 | P86: 2015-12-10 | Q86: 22
A87: TC810344501 | B87: 201 | C87: 810 | D87: 0000 | E87: - | G87: 10 | H87: - | I87: - | J87: - | K87: 6250 | L87: 309.67 | M87: T81090039 | N87: FIA CARD SERVICES NA | O87: SOUTHWES 5262154231462 | P87: 2015-12-10 | Q87: 22
A88: TC810314501 | B88: 201 | C88: 810 | D88: 0000 | E88: - | G88: 10 | H88: - | I88: - | J88: - | K88: 6250 | L88: 37.99 | M88: T81090039 | N88: FIA CARD SERVICES NA | O88: SOUTHWES 5262149191835 | P88: 2015-11-12 | Q88: 22
A89: TC810314501 | B89: 201 | C89: 810 | D89: 0000 | E89: - | G89: 10 | H89: - | I89: - | J89: - | K89: 6250 | L89: 238.01 | M89: T81090039 | N89: FIA CARD SERVICES NA | O89: SOUTHWES 5262149186387 | P89: 2015-11-12 | Q89: 22
A90: TC810314501 | B90: 201 | C90: 810 | D90: 0000 | E90: - | G90: 10 | H90: - | I90: - | J90: - | K90: 6250 | L90: 303 | M90: T81090039 | N90: FIA CARD SERVICES NA | O90: SOUTHWES 5262149291861 | P90: 2015-11-12 | Q90: 22
A91: TC810314501 | B91: 201 | C91: 810 | D91: 0000 | E91: - | G91: 10 | H91: - | I91: - | J91: - | K91: 6250 | L91: 303 | M91: T81090039 | N91: FIA CARD SERVICES NA | O91: SOUTHWES 5262149296850 | P91: 2015-11-12 | Q91: 22
A92: TC810314501 | B92: 201 | C92: 810 | D92: 0000 | E92: - | G92: 10 | H92: - | I92: - | J92: - | K92: 6250 | L92: 303 | M92: T81090039 | N92: FIA CARD SERVICES NA | O92: SOUTHWES 5262149294755 | P92: 2015-11-12 | Q92: 22
A93: TC810314501 | B93: 201 | C93: 810 | D93: 0000 | E93: - | G93: 10 | H93: - | I93: - | J93: - | K93: 6250 | L93: 303 | M93: T81090039 | N93: FIA CARD SERVICES NA | O93: SOUTHWES 5262149297901 | P93: 2015-11-12 | Q93: 22
A94: TC810283501 | B94: 201 | C94: 810 | D94: 0000 | E94: - | G94: 03 | H94: - | I94: - | J94: - | K94: 6250 | L94: 353.92 | M94: T81090039 | N94: FIA CARD SERVICES NA | O94: SOUTHWES 5262140217340 | P94: 2015-10-12 | Q94: 22
A95: BA810100601 | B95: 201 | C95: 810 | D95: 0000 | E95: - | G95: 04 | H95: - | I95: - | J95: - | K95: 7027 | L95: 60 | M95: T81090039 | N95: FIA CARD SERVICES NA | O95: VARIDESK - Purchase | P95: 2016-04-11 | Q95: 22
A96: BA810130601 | B96: 201 | C96: 810 | D96: 0000 | E96: - | G96: 30 | H96: - | I96: - | J96: - | K96: 7302 | L96: 199 | M96: T81090039 | N96: FIA CARD SERVICES NA | O96: FREDPRYOR CAREERTRACK - Pur | P96: 2016-05-10 | Q96: 22
A97: BA810100601 | B97: 201 | C97: 810 | D97: 0000 | E97: - | G97: 04 | H97: - | I97: - | J97: - | K97: 8241 | L97: 395 | M97: T81090039 | N97: FIA CARD SERVICES NA | O97: VARIDESK - Purchase | P97: 2016-04-11 | Q97: 22
L98: Sum: 22,099.55
A99: TC810130601 | B99: 101 | C99: 810 | D99: 0000 | E99: - | F99: 4722 | G99: 30 | H99: - | I99: - | J99: - | K99: 6150 | L99: 786.66 | M99: T81090039 | N99: FIA CARD SERVICES NA | O99: SOUTHWES 5262400332506 - P | P99: 2016-05-10 | Q99: 22
A100: BA810191601 | B100: 101 | C100: 810 | D100: 0000 | E100: - | G100: 03 | H100: - | I100: - | J100: - | K100: 6250 | L100: 287.7 | M100: T81090039 | N100: FIA CARD SERVICES NA | O100: SOUTHWES 5262404408527 - P | P100: 2016-06-13 | Q100: 22
A101: BA810191601 | B101: 101 | C101: 810 | D101: 0000 | E101: - | G101: 03 | H101: - | I101: - | J101: - | K101: 6250 | L101: 276.97 | M101: T81090039 | N101: FIA CARD SERVICES NA | O101: SOUTHWES 5262141674956 | P101: 2015-10-12 | Q101: 22
A102: TC810161601 | B102: 101 | C102: 810 | D102: 0000 | E102: - | G102: 03 | H102: - | I102: - | J102: - | K102: 6250 | L102: 330.96 | M102: T81090039 | N102: FIA CARD SERVICES NA | O102: SOUTHWES 5262148551100 | P102: 2015-11-12 | Q102: 22
A103: BA810161601 | B103: 101 | C103: 810 | D103: 0000 | E103: - | G103: 03 | H103: - | I103: - | J103: - | K103: 6250 | L103: 330.96 | M103: T81090039 | N103: FIA CARD SERVICES NA | O103: SOUTHWES 5262148561462 | P103: 2015-11-12 | Q103: 22
A104: BA810191601 | B104: 101 | C104: 810 | D104: 0000 | E104: - | G104: 03 | H104: - | I104: - | J104: - | K104: 6250 | L104: 165 | M104: T81090039 | N104: FIA CARD SERVICES NA | O104: SOUTHWES 5262136270693 | P104: 2015-09-10 | Q104: 22
A105: BA810041601 | B105: 101 | C105: 810 | D105: 0000 | E105: - | G105: 04 | H105: - | I105: - | J105: - | K105: 7151 | L105: 331 | M105: T81090039 | N105: FIA CARD SERVICES NA | O105: SILVER STATE BARRICADE - Pu | P105: 2016-07-11 | Q105: 22
A106: TC810283501 | B106: 101 | C106: 810 | D106: 0000 | E106: - | G106: 04 | H106: - | I106: - | J106: - | K106: 7371 | L106: 129.99 | M106: T81090039 | N106: FIA CARD SERVICES NA | O106: AUTO TECHNICAL SOLUTIO - Pu | P106: 2016-07-11 | Q106: 22
A107: TC810314501 | B107: 101 | C107: 810 | D107: 0000 | E107: - | G107: 04 | H107: - | I107: - | J107: - | K107: 7371 | L107: 129.99 | M107: T81090039 | N107: FIA CARD SERVICES NA | O107: AUTO TECHNICAL SOLUTIO - Pu | P107: 2016-07-11 | Q107: 22
A108: TC810314501 | B108: 101 | C108: 810 | D108: 0000 | E108: - | G108: 37 | H108: - | I108: - | J108: - | K108: 8371 | L108: 99 | M108: T81090039 | N108: FIA CARD SERVICES NA | O108: APL APPLEONLINESTOREUS - Pu | P108: 2016-06-13 | Q108: 22
A109: TC810253501 | B109: 101 | C109: 810 | D109: 0000 | E109: - | G109: 26 | H109: - | I109: - | J109: - | K109: 8371 | L109: 693 | M109: T81090039 | N109: FIA CARD SERVICES NA | O109: APL APPLEONLINESTOREUS - Pu | P109: 2016-02-11 | Q109: 22
L110: Sum: 3,561.23
A111: TC810161601 | B111: 201 | C111: 810 | D111: 0000 | E111: - | F111: 4732 | G111: 03 | H111: - | I111: - | J111: - | K111: 6250 | L111: 281.96 | M111: T81090039 | N111: FIA CARD SERVICES NA | O111: SOUTHWES 5262406941988 - P | P111: 2016-06-13 | Q111: 22
A112: TC810161601 | B112: 201 | C112: 810 | D112: 0000 | E112: - | G112: 30 | H112: - | I112: - | J112: - | K112: 6250 | L112: 308.96 | M112: T81090039 | N112: FIA CARD SERVICES NA | O112: SOUTHWES 5262407662770 - P | P112: 2016-06-13 | Q112: 22
A113: BA810130601 | B113: 201 | C113: 810 | D113: 0000 | E113: - | G113: 05 | H113: - | I113: - | J113: - | K113: 8331 | L113: 67.91 | M113: T81090039 | N113: FIA CARD SERVICES NA | O113: MONOPRICE COM - Purchase | P113: 2016-05-10 | Q113: 22
A114: TC810253501 | B114: 201 | C114: 810 | D114: 0000 | E114: - | G114: 30 | H114: - | I114: - | J114: - | K114: 6250 | L114: 286.67 | M114: T81090039 | N114: FIA CARD SERVICES NA | O114: SOUTHWES 5262130140610 | P114: 2015-09-10 | Q114: 22
A115: TC810161601 | B115: 201 | C115: 810 | D115: 0000 | E115: - | G115: 30 | H115: - | I115: - | J115: - | K115: 6250 | L115: 89.2 | M115: T81090039 | N115: FIA CARD SERVICES NA | O115: SOUTHWES 5262410926389 - P | P115: 2016-06-13 | Q115: 22
A116: BA810041601 | B116: 201 | C116: 810 | D116: 0000 | E116: - | G116: 04 | H116: - | I116: - | J116: - | K116: 7371 | L116: 137.14 | M116: T81090039 | N116: FIA CARD SERVICES NA | O116: LEGAL BLUEBOOK BLUEBOO - Pu | P116: 2016-02-11 | Q116: 22
L117: Sum: 1,171.84
A118: BA810130601 | B118: 201 | C118: 810 | D118: 0000 | E118: - | F118: 4735 | G118: 04 | H118: - | I118: - | J118: - | K118: 7027 | L118: 42.84 | M118: T81090039 | N118: FIA CARD SERVICES NA | O118: WOODWORKER EXPRESS INC - Pu | P118: 2016-05-10 | Q118: 22
A119: BA810130601 | B119: 201 | C119: 810 | D119: 0000 | E119: - | G119: 41 | H119: - | I119: - | J119: 2023213 | K119: 6150 | L119: 265.2 | M119: T81090039 | N119: FIA CARD SERVICES NA | O119: ALASKA A 0272187618594 - P | P119: 2016-03-10 | Q119: 22
A120: BA810130601 | B120: 201 | C120: 810 | D120: 0000 | E120: - | G120: 41 | H120: - | I120: - | J120: 2023213 | K120: 6150 | L120: 265.2 | M120: T81090039 | N120: FIA CARD SERVICES NA | O120: ALASKA A 0272187617582 - P | P120: 2016-03-10 | Q120: 22
A121: BA810130601 | B121: 201 | C121: 810 | D121: 0000 | E121: - | G121: 02 | H121: - | I121: - | J121: - | K121: 6150 | L121: 310.2 | M121: T81090039 | N121: FIA CARD SERVICES NA | O121: ALASKA A 0272188209186 - P | P121: 2016-03-10 | Q121: 22
A122: BA810130601 | B122: 201 | C122: 810 | D122: 0000 | E122: - | G122: 03 | H122: - | I122: - | J122: - | K122: 6250 | L122: 215.96 | M122: T81090039 | N122: FIA CARD SERVICES NA | O122: SOUTHWES 5262407159616 - P | P122: 2016-06-13 | Q122: 22
A123: TC810161601 | B123: 201 | C123: 810 | D123: 0000 | E123: - | G123: 03 | H123: - | I123: - | J123: - | K123: 6250 | L123: 227.74 | M123: T81090039 | N123: FIA CARD SERVICES NA | O123: SOUTHWES 5262419753284 - P | P123: 2016-07-11 | Q123: 22
A124: TC810191601 | B124: 201 | C124: 810 | D124: 0000 | E124: - | G124: 03 | H124: - | I124: - | J124: - | K124: 6250 | L124: 227.74 | M124: T81090039 | N124: FIA CARD SERVICES NA | O124: SOUTHWES 5262419755506 - P | P124: 2016-07-11 | Q124: 22
A125: TC810191601 | B125: 201 | C125: 810 | D125: 0000 | E125: - | G125: 03 | H125: - | I125: - | J125: - | K125: 6250 | L125: 430.78 | M125: T81090039 | N125: FIA CARD SERVICES NA | O125: SOUTHWES 5262415488748 - P | P125: 2016-07-11 | Q125: 22
A126: TC810191601 | B126: 201 | C126: 810 | D126: 0000 | E126: - | G126: 41 | H126: - | I126: - | J126: 2023213 | K126: 6250 | L126: 330.92 | M126: T81090039 | N126: FIA CARD SERVICES NA | O126: SOUTHWES 5262161415115 | P126: 2015-12-10 | Q126: 22
A127: BA810191601 | B127: 201 | C127: 810 | D127: 0000 | E127: - | G127: 41 | H127: - | I127: - | J127: 2023213 | K127: 6250 | L127: 330.92 | M127: T81090039 | N127: FIA CARD SERVICES NA | O127: SOUTHWES 5262161415746 | P127: 2015-12-10 | Q127: 22
A128: TC810344501 | B128: 201 | C128: 810 | D128: 0000 | E128: - | G128: 41 | H128: - | I128: - | J128: 2023213 | K128: 6250 | L128: 330.92 | M128: T81090039 | N128: FIA CARD SERVICES NA | O128: SOUTHWES 5262161378649 | P128: 2015-12-10 | Q128: 22
A129: TC810344501 | B129: 201 | C129: 810 | D129: 0000 | E129: - | G129: 03 | H129: - | I129: - | J129: - | K129: 6250 | L129: 314.92 | M129: T81090039 | N129: FIA CARD SERVICES NA | O129: SOUTHWES 5262155306423 | P129: 2015-12-10 | Q129: 22
A130: TC810344501 | B130: 201 | C130: 810 | D130: 0000 | E130: - | G130: 03 | H130: - | I130: - | J130: - | K130: 6250 | L130: 199.96 | M130: T81090039 | N130: FIA CARD SERVICES NA | O130: SOUTHWES 5262158944806 | P130: 2015-12-10 | Q130: 22
A131: TC810344501 | B131: 201 | C131: 810 | D131: 0000 | E131: - | G131: 03 | H131: - | I131: - | J131: - | K131: 6250 | L131: 340.96 | M131: T81090039 | N131: FIA CARD SERVICES NA | O131: SOUTHWES 5262121076768 | P131: 2015-08-10 | Q131: 22
A132: TC810344501 | B132: 201 | C132: 810 | D132: 0000 | E132: - | G132: 03 | H132: - | I132: - | J132: - | K132: 6250 | L132: 386.66 | M132: T81090039 | N132: FIA CARD SERVICES NA | O132: SOUTHWES 5262144304109 | P132: 2015-10-12 | Q132: 22
A133: BA81022260A | B133: 201 | C133: 810 | D133: 0000 | E133: - | G133: 03 | H133: - | I133: - | J133: - | K133: 6250 | L133: 55.7 | M133: T81090039 | N133: FIA CARD SERVICES NA | O133: SOUTHWES 5262134215112 | P133: 2015-09-10 | Q133: 22
A134: TC810222501 | B134: 201 | C134: 810 | D134: 0000 | E134: - | G134: 03 | H134: - | I134: - | J134: - | K134: 6250 | L134: 265 | M134: T81090039 | N134: FIA CARD SERVICES NA | O134: SOUTHWES 5262131956519 | P134: 2015-09-10 | Q134: 22
A135: TC810283501 | B135: 201 | C135: 810 | D135: 0000 | E135: - | G135: 03 | H135: - | I135: - | J135: - | K135: 6250 | L135: 330.96 | M135: T81090039 | N135: FIA CARD SERVICES NA | O135: SOUTHWES 5262131953373 | P135: 2015-09-10 | Q135: 22
A136: TC810253501 | B136: 201 | C136: 810 | D136: 0000 | E136: - | G136: 03 | H136: - | I136: - | J136: - | K136: 6250 | L136: 401.99 | M136: T81090039 | N136: FIA CARD SERVICES NA | O136: SOUTHWES 5262185620789 - P | P136: 2016-03-10 | Q136: 22
A137: TC810253501 | B137: 201 | C137: 810 | D137: 0000 | E137: - | G137: 03 | H137: - | I137: - | J137: - | K137: 6250 | L137: 217.29 | M137: T81090039 | N137: FIA CARD SERVICES NA | O137: SOUTHWES 5262192866690 - P | P137: 2016-04-11 | Q137: 22
A138: TC810253501 | B138: 201 | C138: 810 | D138: 0000 | E138: - | G138: 03 | H138: - | I138: - | J138: - | K138: 6250 | L138: 243.96 | M138: T81090039 | N138: FIA CARD SERVICES NA | O138: SOUTHWES 5262192388665 - P | P138: 2016-04-11 | Q138: 22
A139: BA810010601 | B139: 201 | C139: 810 | D139: 0000 | E139: - | G139: 03 | H139: - | I139: - | J139: - | K139: 6250 | L139: 243.96 | M139: T81090039 | N139: FIA CARD SERVICES NA | O139: SOUTHWES 5262192386212 - P | P139: 2016-04-11 | Q139: 22
A140: BA810041601 | B140: 201 | C140: 810 | D140: 0000 | E140: - | G140: 41 | H140: - | I140: - | J140: 2023213 | K140: 6250 | L140: 266.96 | M140: T81090039 | N140: FIA CARD SERVICES NA | O140: SOUTHWES 5262186902624 - P | P140: 2016-04-11 | Q140: 22
A141: TC810069601 | B141: 201 | C141: 810 | D141: 0000 | E141: - | G141: 41 | H141: - | I141: - | J141: 2023213 | K141: 6250 | L141: 266.96 | M141: T81090039 | N141: FIA CARD SERVICES NA | O141: SOUTHWES 5262186900440 - P | P141: 2016-04-11 | Q141: 22
A142: TC810069601 | B142: 201 | C142: 810 | D142: 0000 | E142: - | G142: 41 | H142: - | I142: - | J142: 2023213 | K142: 6250 | L142: 283.7 | M142: T81090039 | N142: FIA CARD SERVICES NA | O142: SOUTHWES 5262187663727 - P | P142: 2016-04-11 | Q142: 22
A143: TC810069601 | B143: 201 | C143: 810 | D143: 0000 | E143: - | G143: 03 | H143: - | I143: - | J143: - | K143: 6250 | L143: 401.99 | M143: T81090039 | N143: FIA CARD SERVICES NA | O143: SOUTHWES 5262192868306 - P | P143: 2016-04-11 | Q143: 22
A144: TC810069601 | B144: 201 | C144: 810 | D144: 0000 | E144: - | G144: 03 | H144: - | I144: - | J144: - | K144: 6250 | L144: -217.29 | M144: T81090039 | N144: FIA CARD SERVICES NA | O144: SOUTHWES 5262185620789 - C | P144: 2016-04-11 | Q144: 22
A145: TC810100601 | B145: 201 | C145: 810 | D145: 0000 | E145: - | G145: 04 | H145: - | I145: - | J145: - | K145: 7020 | L145: 32.74 | M145: T81090039 | N145: FIA CARD SERVICES NA | O145: SNFD/DYMO/CDSCN/PKRPEN - Pu | P145: 2016-05-10 | Q145: 22
A146: TC810100601 | B146: 201 | C146: 810 | D146: 0000 | E146: - | G146: 04 | H146: - | I146: - | J146: - | K146: 7020 | L146: 49.8 | M146: T81090039 | N146: FIA CARD SERVICES NA | O146: BATTERY MONSTER LLC - Purch | P146: 2016-01-11 | Q146: 22
A147: TC810100601 | B147: 201 | C147: 810 | D147: 0000 | E147: - | G147: 04 | H147: - | I147: - | J147: - | K147: 7027 | L147: 127.91 | M147: T81090039 | N147: FIA CARD SERVICES NA | O147: WOODWORKER EXPRESS INC - Pu | P147: 2016-05-10 | Q147: 22
A148: TC810100601 | B148: 201 | C148: 810 | D148: 0000 | E148: - | G148: 04 | H148: - | I148: - | J148: - | K148: 7027 | L148: 157 | M148: T81090039 | N148: FIA CARD SERVICES NA | O148: WOODWORKER EXPRESS INC - Pu | P148: 2016-05-10 | Q148: 22
A149: TC810100601 | B149: 201 | C149: 810 | D149: 0000 | E149: - | G149: 04 | H149: - | I149: - | J149: - | K149: 7027 | L149: 167.62 | M149: T81090039 | N149: FIA CARD SERVICES NA | O149: PERFORMANCE PRODUCTS C - Pu | P149: 2016-07-11 | Q149: 22
A150: TC810100601 | B150: 201 | C150: 810 | D150: 0000 | E150: - | G150: 04 | H150: - | I150: - | J150: - | K150: 7027 | L150: 626.1 | M150: T81090039 | N150: FIA CARD SERVICES NA | O150: WHOLESALE 4 - Purchase | P150: 2016-02-11 | Q150: 22
A151: TC810100601 | B151: 201 | C151: 810 | D151: 0000 | E151: - | G151: 04 | H151: - | I151: - | J151: - | K151: 7030 | L151: 380.23 | M151: T81090039 | N151: FIA CARD SERVICES NA | O151: OLD DOMINION FREIGHTLI - Pu | P151: 2016-08-10 | Q151: 22
A152: TC810100601 | B152: 201 | C152: 810 | D152: 0000 | E152: - | G152: 04 | H152: - | I152: - | J152: - | K152: 7430 | L152: 203 | M152: T81090039 | N152: FIA CARD SERVICES NA | O152: CITY OF SPARKS - ALARM - Pu | P152: 2016-05-10 | Q152: 22
L153: Sum: 8,726.50
A154: TC810069601 | B154: 201 | C154: 810 | D154: 0000 | E154: - | F154: 4740 | G154: 03 | H154: - | I154: - | J154: - | K154: 6250 | L154: 313.96 | M154: T81090039 | N154: FIA CARD SERVICES NA | O154: SOUTHWES 5262177265556 - P | P154: 2016-03-10 | Q154: 22
A155: TC810069601 | B155: 201 | C155: 810 | D155: 0000 | E155: - | G155: 03 | H155: - | I155: - | J155: - | K155: 6250 | L155: 313.96 | M155: T81090039 | N155: FIA CARD SERVICES NA | O155: SOUTHWES 5262177264698 - P | P155: 2016-03-10 | Q155: 22
A156: TC810100601 | B156: 201 | C156: 810 | D156: 0000 | E156: - | G156: 03 | H156: - | I156: - | J156: - | K156: 6250 | L156: 98.98 | M156: T81090039 | N156: FIA CARD SERVICES NA | O156: SOUTHWES 5262186538779 - P | P156: 2016-04-11 | Q156: 22
A157: TC810100601 | B157: 201 | C157: 810 | D157: 0000 | E157: - | G157: 03 | H157: - | I157: - | J157: - | K157: 6250 | L157: 98.98 | M157: T81090039 | N157: FIA CARD SERVICES NA | O157: SOUTHWES 5262186539731 - P | P157: 2016-04-11 | Q157: 22
A158: TC810130601 | B158: 201 | C158: 810 | D158: 0000 | E158: - | G158: 03 | H158: - | I158: - | J158: - | K158: 6250 | L158: 369.4 | M158: T81090039 | N158: FIA CARD SERVICES NA | O158: SOUTHWES 5262198987870 - P | P158: 2016-05-10 | Q158: 22
A159: TC810161601 | B159: 201 | C159: 810 | D159: 0000 | E159: - | G159: 03 | H159: - | I159: - | J159: - | K159: 6250 | L159: 335.96 | M159: T81090039 | N159: FIA CARD SERVICES NA | O159: SOUTHWES 5262406417170 - P | P159: 2016-06-13 | Q159: 22
A160: BA81022260A | B160: 201 | C160: 810 | D160: 0000 | E160: - | G160: 04 | H160: - | I160: - | J160: - | K160: 7151 | L160: 155 | M160: T81090039 | N160: FIA CARD SERVICES NA | O160: NEVADA WINDOW TINTI - Purch | P160: 2016-08-10 | Q160: 22
A161: TC810283501 | B161: 201 | C161: 810 | D161: 0000 | E161: - | G161: 03 | H161: - | I161: - | J161: - | K161: 6250 | L161: 419.4 | M161: T81090039 | N161: FIA CARD SERVICES NA | O161: SOUTHWES 5262140515584 | P161: 2015-10-12 | Q161: 22
A162: TC810222501 | B162: 201 | C162: 810 | D162: 0000 | E162: - | G162: 30 | H162: - | I162: - | J162: - | K162: 6250 | L162: 200 | M162: T81090039 | N162: FIA CARD SERVICES NA | O162: SOUTHWES 5262123681998 | P162: 2015-08-10 | Q162: 22
A163: TC810222501 | B163: 201 | C163: 810 | D163: 0000 | E163: - | G163: 30 | H163: - | I163: - | J163: - | K163: 6250 | L163: 200 | M163: T81090039 | N163: FIA CARD SERVICES NA | O163: SOUTHWES 5262122727140 | P163: 2015-08-10 | Q163: 22
A164: TC810253501 | B164: 201 | C164: 810 | D164: 0000 | E164: - | G164: 03 | H164: - | I164: - | J164: - | K164: 6250 | L164: 165 | M164: T81090039 | N164: FIA CARD SERVICES NA | O164: SOUTHWES 5262135836301 | P164: 2015-09-10 | Q164: 22
A165: BA81022260A | B165: 201 | C165: 810 | D165: 0000 | E165: - | G165: 04 | H165: - | I165: - | J165: - | K165: 7151 | L165: 155 | M165: T81090039 | N165: FIA CARD SERVICES NA | O165: NEVADA WINDOW TINTI - Purch | P165: 2016-08-10 | Q165: 22
A166: TC810222501 | B166: 201 | C166: 810 | D166: 0000 | E166: - | G166: 30 | H166: - | I166: - | J166: - | K166: 6250 | L166: 200 | M166: T81090039 | N166: FIA CARD SERVICES NA | O166: SOUTHWES 5262125845384 | P166: 2015-08-10 | Q166: 22
L167: Sum: 3,025.64
A168: TC810161601 | B168: 201 | C168: 810 | D168: 0000 | E168: - | F168: 4741 | G168: 02 | H168: - | I168: - | J168: - | K168: 6150 | L168: 30 | M168: T81090039 | N168: FIA CARD SERVICES NA | O168: TRAVELOCITY.COM - Purchase | P168: 2016-06-13 | Q168: 22
A169: TC810161601 | B169: 201 | C169: 810 | D169: 0000 | E169: - | G169: 02 | H169: - | I169: - | J169: - | K169: 6150 | L169: 425.2 | M169: T81090039 | N169: FIA CARD SERVICES NA | O169: ALASKA A 02777744682521 - | P169: 2016-06-13 | Q169: 22
A170: TC810161601 | B170: 201 | C170: 810 | D170: 0000 | E170: - | G170: 02 | H170: - | I170: - | J170: - | K170: 6150 | L170: 425.2 | M170: T81090039 | N170: FIA CARD SERVICES NA | O170: ALASKA A 0272113617861 - P | P170: 2016-06-13 | Q170: 22
A171: BA810191601 | B171: 201 | C171: 810 | D171: 0000 | E171: - | G171: 04 | H171: - | I171: - | J171: - | K171: 7023 | L171: -147 | M171: T81090039 | N171: FIA CARD SERVICES NA | O171: CAN CANONUSA DIRECT - Credi | P171: 2016-07-11 | Q171: 22
A172: BA810191601 | B172: 201 | C172: 810 | D172: 0000 | E172: - | G172: 04 | H172: - | I172: - | J172: - | K172: 7023 | L172: 147 | M172: T81090039 | N172: FIA CARD SERVICES NA | O172: CAN CANONUSA DIRECT - Purch | P172: 2016-07-11 | Q172: 22
L173: Sum: 880.40
A174: TC810161601 | B174: 201 | C174: 810 | D174: 0000 | E174: - | F174: 4742 | G174: 02 | H174: - | I174: - | J174: - | K174: 6150 | L174: 292.6 | M174: T81090039 | N174: FIA CARD SERVICES NA | O174: DELTA 00623422370594 - | P174: 2016-06-13 | Q174: 22
A175: TC810161601 | B175: 201 | C175: 810 | D175: 0000 | E175: - | G175: 02 | H175: - | I175: - | J175: - | K175: 6150 | L175: 202.6 | M175: T81090039 | N175: FIA CARD SERVICES NA | O175: DELTA 00623421477571 - | P175: 2016-06-13 | Q175: 22
A176: TC810161601 | B176: 201 | C176: 810 | D176: 0000 | E176: - | G176: 03 | H176: - | I176: - | J176: - | K176: 6250 | L176: 109.56 | M176: T81090039 | N176: FIA CARD SERVICES NA | O176: SOUTHWES 5262409017071 - P | P176: 2016-06-13 | Q176: 22
A177: BA810130601 | B177: 201 | C177: 810 | D177: 0000 | E177: - | G177: 04 | H177: - | I177: - | J177: - | K177: 7040 | L177: 14.1 | M177: T81090039 | N177: FIA CARD SERVICES NA | O177: FEDEXOFFICE 00007773 - Pu | P177: 2016-05-10 | Q177: 22
A178: TC810069601 | B178: 201 | C178: 810 | D178: 0000 | E178: - | G178: 03 | H178: - | I178: - | J178: - | K178: 6250 | L178: 205.96 | M178: T81090039 | N178: FIA CARD SERVICES NA | O178: SOUTHWES 5262183699196 - P | P178: 2016-03-10 | Q178: 22
A179: TC810191601 | B179: 201 | C179: 810 | D179: 0000 | E179: - | G179: 02 | H179: - | I179: - | J179: - | K179: 6150 | L179: 428 | M179: T81090039 | N179: FIA CARD SERVICES NA | O179: DELTA 00621680904412 - | P179: 2016-07-11 | Q179: 22
A180: TC810069601 | B180: 201 | C180: 810 | D180: 0000 | E180: - | G180: 02 | H180: - | I180: - | J180: - | K180: 6150 | L180: 265.2 | M180: T81090039 | N180: FIA CARD SERVICES NA | O180: ALASKA A 0272187116621 - P | P180: 2016-03-10 | Q180: 22
A181: TC810100601 | B181: 201 | C181: 810 | D181: 0000 | E181: - | G181: 02 | H181: - | I181: - | J181: - | K181: 6150 | L181: 291.2 | M181: T81090039 | N181: FIA CARD SERVICES NA | O181: ALASKA A 0272188628104 - P | P181: 2016-04-11 | Q181: 22
A182: TC810069601 | B182: 201 | C182: 810 | D182: 0000 | E182: - | G182: 03 | H182: - | I182: - | J182: - | K182: 6250 | L182: 270.96 | M182: T81090039 | N182: FIA CARD SERVICES NA | O182: SOUTHWES 5262181525566 - P | P182: 2016-03-10 | Q182: 22
A183: TC810069601 | B183: 201 | C183: 810 | D183: 0000 | E183: - | G183: 03 | H183: - | I183: - | J183: - | K183: 6250 | L183: 81.72 | M183: T81090039 | N183: FIA CARD SERVICES NA | O183: SOUTHWES 5262185642643 - P | P183: 2016-03-10 | Q183: 22
A184: TC810069601 | B184: 201 | C184: 810 | D184: 0000 | E184: - | G184: 03 | H184: - | I184: - | J184: - | K184: 6250 | L184: 140.98 | M184: T81090039 | N184: FIA CARD SERVICES NA | O184: SOUTHWES 5262185688847 - P | P184: 2016-03-10 | Q184: 22
L185: Sum: 2,302.88
A186: BA810191601 | B186: 201 | C186: 810 | D186: 0000 | E186: - | F186: 4744 | G186: 30 | H186: - | I186: - | J186: - | K186: 7302 | L186: 239 | M186: T81090039 | N186: FIA CARD SERVICES NA | O186: SQ IDEATION CONSULTIN - Pu | P186: 2016-07-11 | Q186: 22
A187: TC810100601 | B187: 201 | C187: 810 | D187: 0000 | E187: - | G187: 02 | H187: - | I187: - | J187: - | K187: 6150 | L187: 310.2 | M187: T81090039 | N187: FIA CARD SERVICES NA | O187: ALASKA A 0272188614933 - P | P187: 2016-04-11 | Q187: 22
A188: TC810100601 | B188: 201 | C188: 810 | D188: 0000 | E188: - | G188: 02 | H188: - | I188: - | J188: - | K188: 6150 | L188: 280.2 | M188: T81090039 | N188: FIA CARD SERVICES NA | O188: ALASKA A 0272188616073 - P | P188: 2016-04-11 | Q188: 22
A189: BA810191601 | B189: 201 | C189: 810 | D189: 0000 | E189: - | G189: 02 | H189: - | I189: - | J189: - | K189: 6150 | L189: 384 | M189: T81090039 | N189: FIA CARD SERVICES NA | O189: PV 810 TC810161501-8 | P189: 2015-07-02 | Q189: 22
A190: TC810191601 | B190: 201 | C190: 810 | D190: 0000 | E190: - | G190: 02 | H190: - | I190: - | J190: - | K190: 6150 | L190: 199.98 | M190: T81090039 | N190: FIA CARD SERVICES NA | O190: PV 810 TC810161501-7 | P190: 2015-07-02 | Q190: 22
A191: TC810069601 | B191: 201 | C191: 810 | D191: 0000 | E191: - | G191: 02 | H191: - | I191: - | J191: - | K191: 6150 | L191: 957 | M191: T81090039 | N191: FIA CARD SERVICES NA | O191: AMERICAN 00123132530610 | P191: 2015-12-10 | Q191: 22
A192: TC810041601 | B192: 201 | C192: 810 | D192: 0000 | E192: - | G192: 03 | H192: - | I192: - | J192: - | K192: 6250 | L192: 398.16 | M192: T81090039 | N192: FIA CARD SERVICES NA | O192: SOUTHWES 5262413017246 - P | P192: 2016-07-11 | Q192: 22
A193: TC810010601 | B193: 201 | C193: 810 | D193: 0000 | E193: - | G193: 30 | H193: - | I193: - | J193: - | K193: 6250 | L193: 297.96 | M193: T81090039 | N193: FIA CARD SERVICES NA | O193: SOUTHWES 5262183701352 - P | P193: 2016-03-10 | Q193: 22
A194: TC810010601 | B194: 201 | C194: 810 | D194: 0000 | E194: - | G194: 03 | H194: - | I194: - | J194: - | K194: 6250 | L194: 304.83 | M194: T81090039 | N194: FIA CARD SERVICES NA | O194: SOUTHWES 5262173888154 - P | P194: 2016-02-11 | Q194: 22
A195: BA810010601 | B195: 201 | C195: 810 | D195: 0000 | E195: - | G195: 03 | H195: - | I195: - | J195: - | K195: 6250 | L195: 364.94 | M195: T81090039 | N195: FIA CARD SERVICES NA | O195: undefined | P195: 2016-01-11 | Q195: 22
A196: BA810010601 | B196: 201 | C196: 810 | D196: 0000 | E196: - | G196: 03 | H196: - | I196: - | J196: - | K196: 6250 | L196: 386.63 | M196: T81090039 | N196: FIA CARD SERVICES NA | O196: undefined | P196: 2016-01-11 | Q196: 22
A197: TC810222501 | B197: 201 | C197: 810 | D197: 0000 | E197: - | G197: 03 | H197: - | I197: - | J197: - | K197: 6250 | L197: 459.32 | M197: T81090039 | N197: FIA CARD SERVICES NA | O197: SOUTHWES 5262124886314 | P197: 2015-08-10 | Q197: 22
A198: 10000156690 | B198: 201 | C198: 810 | D198: 0000 | E198: - | G198: 03 | H198: - | I198: - | J198: - | K198: 6250 | L198: 405.88 | M198: T81090039 | N198: FIA CARD SERVICES NA | O198: SOUTHWES 5262121154231 | P198: 2015-08-10 | Q198: 22
A199: TC810222501 | B199: 201 | C199: 810 | D199: 0000 | E199: - | G199: 03 | H199: - | I199: - | J199: - | K199: 6250 | L199: 330.96 | M199: T81090039 | N199: FIA CARD SERVICES NA | O199: SOUTHWES 5262131999367 | P199: 2015-09-10 | Q199: 22
A200: 10000156690 | B200: 201 | C200: 810 | D200: 0000 | E200: - | G200: 03 | H200: - | I200: - | J200: - | K200: 6250 | L200: 396.17 | M200: T81090039 | N200: FIA CARD SERVICES NA | O200: SOUTHWES 5262127954483 | P200: 2015-08-10 | Q200: 22
A201: TC810253501 | B201: 201 | C201: 810 | D201: 0000 | E201: - | G201: 03 | H201: - | I201: - | J201: - | K201: 6250 | L201: 401.99 | M201: T81090039 | N201: FIA CARD SERVICES NA | O201: SOUTHWES 5262199171833 - P | P201: 2016-05-10 | Q201: 22
... 40 more rows

Sheet Closing Rev
A1: Budget Account | B1: Agency No. | C1: Budget Account Description | D1: GL | E1: GL Description | F1: FY2016 Revenue Actuals
A2: 4715 | B2: 810 | C2: DMV - AUTOMATION | D2: 2507 | E2: HIGHWAY FUND AUTHORIZATION | F2: 5534083 | G2: 4715 | H2: 0.5308713019 | I2: HIGHWAY FUND
A3: 4715 | B3: 810 | C3: DMV - AUTOMATION | D3: 2510 | E3: REVERSIONS | F3: -676033 | G3: ↓ | H3: ↓ | I3: ↓
A4: 4715 | B4: 810 | C4: DMV - AUTOMATION | D4: 2511 | E4: BALANCE FORWARD FROM PREVIOUS YEAR | F4: 56016 | G4: 4715 | H4: 0.4691286981 | I4: AGENCY
A5: 4715 | B5: 810 | C5: DMV - AUTOMATION | D5: 3842 | E5: RECORDS SEARCH IT | F5: 603332 | G5: ↓ | H5: ↓ | I5: ↓
A6: 4715 | B6: 810 | C6: DMV - AUTOMATION | D6: 4231 | E6: COST ALLOCATION REIMBURSEMENT | F6: 300993 | G6: ↓ | H6: ↓ | I6: ↓
A7: 4715 | B7: 810 | C7: DMV - AUTOMATION | D7: 4253 | E7: DONATIONS COMPLETE STREETS PROGRAM | F7: 3018 | G7: ↓ | H7: ↓ | I7: ↓
A8: 4715 | B8: 810 | C8: DMV - AUTOMATION | D8: 4335 | E8: REIMBURSEMENT OF EXPENSES | F8: 6020 | G8: ↓ | H8: ↓ | I8: ↓
A9: 4715 | B9: 810 | C9: DMV - AUTOMATION | D9: 4351 | E9: REIMBURSEMENT- RTC AB413 | F9: 28736 | G9: ↓ | H9: ↓ | I9: ↓
A10: 4715 | B10: 810 | C10: DMV - AUTOMATION | D10: 4353 | E10: REIMBURSEMENT ELT-AB309 | F10: 17100 | G10: ↓ | H10: ↓ | I10: ↓
A11: 4715 | B11: 810 | C11: DMV - AUTOMATION | D11: 4354 | E11: REIMBURSEMENT - HHS-DPBH | F11: 26132 | G11: ↓ | H11: ↓ | I11: ↓
A12: 4715 | B12: 810 | C12: DMV - AUTOMATION | D12: 4355 | E12: REIMBURSEMENT OF EXPENSES | F12: 2074 | G12: ↓ | H12: ↓ | I12: ↓
A13: 4715 | B13: 810 | C13: DMV - AUTOMATION | D13: 4721 | E13: TRANSFER FROM DMV | F13: 3249617 | G13: ↓ | H13: ↓ | I13: ↓
A14: 4715 Total | F14: 9151088
A15: 4716 | B15: 810 | C15: DMV - SYSTEM MODERNIZATION | D15: 2507 | E15: HIGHWAY FUND AUTHORIZATION | F15: 7371182 | G15: 4716 | H15: 0.5205505857 | I15: HIGHWAY FUND
A16: 4716 | B16: 810 | C16: DMV - SYSTEM MODERNIZATION | D16: 2510 | E16: REVERSIONS | F16: -414456 | G16: ↓ | H16: ↓ | I16: ↓
A17: 4716 | B17: 810 | C17: DMV - SYSTEM MODERNIZATION | D17: 2512 | E17: BALANCE FORWARD TO NEW YEAR | F17: -1042941 | G17: 4716 | H17: 0.4794494143 | I17: AGENCY
A18: 4716 | B18: 810 | C18: DMV - SYSTEM MODERNIZATION | D18: 3722 | E18: TECHNOLOGY FEES | F18: 6407443 | G18: ↓ | H18: ↓ | I18: ↓
A19: 4716 | B19: 810 | C19: DMV - SYSTEM MODERNIZATION | D19: 4650 | E19: TRANSFER FROM CONTINGENCY-HWY | F19: 1042941 | G19: ↓ | H19: ↓ | I19: ↓
A20: 4716 Total | F20: 13364169
A21: 4717 | B21: 810 | C21: DMV - MOTOR CARRIER | D21: 2507 | E21: HIGHWAY FUND AUTHORIZATION | F21: 1810244 | G21: 4717 | H21: 0.1557276518 | I21: HIGHWAY FUND
A22: 4717 | B22: 810 | C22: DMV - MOTOR CARRIER | D22: 2510 | E22: REVERSIONS | F22: -1183640 | G22: ↓ | H22: ↓ | I22: ↓
A23: 4717 | B23: 810 | C23: DMV - MOTOR CARRIER | D23: 3324 | E23: MV GOVERNMENTAL SERVICES TAX COMMISSIONS | F23: 1135811 | G23: 4717 | H23: 0.8442723482 | I23: AGENCY
A24: 4717 | B24: 810 | C24: DMV - MOTOR CARRIER | D24: 3722 | E24: MISCELLANEOUS PROGRAM FEES - IFTA DECALS | F24: 41981 | G24: ↓ | H24: ↓ | I24: ↓
A25: 4717 | B25: 810 | C25: DMV - MOTOR CARRIER | D25: 3751 | E25: ADMINISTRATION FEE-A | F25: 507640 | G25: ↓ | H25: ↓ | I25: ↓
A26: 4717 | B26: 810 | C26: DMV - MOTOR CARRIER | D26: 3752 | E26: ADMINISTRATION FEE-B | F26: 134094 | G26: ↓ | H26: ↓ | I26: ↓
A27: 4717 | B27: 810 | C27: DMV - MOTOR CARRIER | D27: 3753 | E27: ADMINISTRATION FEE-C | F27: 44674 | G27: ↓ | H27: ↓ | I27: ↓
A28: 4717 | B28: 810 | C28: DMV - MOTOR CARRIER | D28: 3754 | E28: ADMINISTRATION FEE-D | F28: 6307 | G28: ↓ | H28: ↓ | I28: ↓
A29: 4717 | B29: 810 | C29: DMV - MOTOR CARRIER | D29: 3755 | E29: ADMIN FEE E - PPI SF | F29: 279087 | G29: ↓ | H29: ↓ | I29: ↓
A30: 4717 | B30: 810 | C30: DMV - MOTOR CARRIER | D30: 3757 | E30: ADMIN FEE F - PPI MF | F30: 1199082 | G30: ↓ | H30: ↓ | I30: ↓
A31: 4717 | B31: 810 | C31: DMV - MOTOR CARRIER | D31: 4201 | E31: REIMBURSEMENT | F31: 22406 | G31: ↓ | H31: ↓ | I31: ↓
A32: 4717 | B32: 810 | C32: DMV - MOTOR CARRIER | D32: 4203 | E32: PRIOR YEAR REFUNDS | F32: 10164 | G32: ↓ | H32: ↓ | I32: ↓
A33: 4717 | B33: 810 | C33: DMV - MOTOR CARRIER | D33: 4270 | E33: COMMISSIONS | F33: 12714 | G33: ↓ | H33: ↓ | I33: ↓
A34: 4717 | B34: 810 | C34: DMV - MOTOR CARRIER | D34: 4351 | E34: REIMBURSEMENT FOR UTILITIES | F34: 3153 | G34: ↓ | H34: ↓ | I34: ↓
A35: 4717 Total | F35: 4023717
A36: 4722 | B36: 810 | C36: DMV - MOTOR VEHICLE POLLUTION CONTROL | D36: 2511 | E36: BALANCE FORWARD FROM PREVIOUS YEAR | F36: 2343674 | G36: 4722 | H36: 1 | I36: AGENCY
A37: 4722 | B37: 810 | C37: DMV - MOTOR VEHICLE POLLUTION CONTROL | D37: 2512 | E37: BALANCE FORWARD TO NEW YEAR | F37: -2391043 | G37: ↓ | H37: ↓ | I37: ↓
A38: 4722 | B38: 810 | C38: DMV - MOTOR VEHICLE POLLUTION CONTROL | D38: 3601 | E38: LICENSES AND FEES | F38: 73675 | G38: ↓ | H38: ↓ | I38: ↓
A39: 4722 | B39: 810 | C39: DMV - MOTOR VEHICLE POLLUTION CONTROL | D39: 3756 | E39: POLLUTION CONTROL FEES | F39: 9836513 | G39: ↓ | H39: ↓ | I39: ↓
A40: 4722 | B40: 810 | C40: DMV - MOTOR VEHICLE POLLUTION CONTROL | D40: 4252 | E40: EXCESS PROPERTY SALES | F40: 29442 | G40: ↓ | H40: ↓ | I40: ↓
A41: 4722 Total | F41: 9892261
A42: 4731 | B42: 810 | C42: DMV - VERIFICATION OF INSURANCE | D42: 2510 | E42: REVERSIONS | F42: -9943026 | G42: 4731 | H42: 1 | I42: AGENCY
A43: 4731 | B43: 810 | C43: DMV - VERIFICATION OF INSURANCE | D43: 2511 | E43: BALANCE FORWARD FROM PREVIOUS YEAR | F43: 500000 | G43: ↓ | H43: ↓ | I43: ↓
A44: 4731 | B44: 810 | C44: DMV - VERIFICATION OF INSURANCE | D44: 2512 | E44: BALANCE FORWARD TO NEW YEAR | F44: -500000 | G44: ↓ | H44: ↓ | I44: ↓
A45: 4731 | B45: 810 | C45: DMV - VERIFICATION OF INSURANCE | D45: 3700 | E45: REGISTRATION FEES | F45: 12011607 | G45: ↓ | H45: ↓ | I45: ↓
A46: 4731 | B46: 810 | C46: DMV - VERIFICATION OF INSURANCE | D46: 4203 | E46: PRIOR YEAR REFUNDS | F46: 7824 | G46: ↓ | H46: ↓ | I46: ↓
A47: 4731 Total | F47: 2076405
A48: 4732 | B48: 810 | C48: DMV - HEARINGS | D48: 2507 | E48: HIGHWAY FUND AUTHORIZATION | F48: 1224578 | G48: 4732 | H48: =SUM(F48:F49)/F51 -> 0.9963698698 | I48: HIGHWAY FUND
A49: 4732 | B49: 810 | C49: DMV - HEARINGS | D49: 2510 | E49: REVERSIONS | F49: -44073 | G49: ↓ | H49: ↓ | I49: ↓
A50: 4732 | B50: 810 | C50: DMV - HEARINGS | D50: 4254 | E50: MISCELLANEOUS REVENUE | F50: 4301 | G50: 4732 | H50: =+F50/F51 -> 0.003630130165 | I50: AGENCY
A51: 4732 Total | F51: 1184806
B52: 810 Total | F52: 3261211
A53: 4735 | B53: 810 | C53: DMV - FIELD SERVICES | D53: 2501 | E53: APPROPRIATION CONTROL | F53: 11072 | G53: 4735 | H53: 0.0002473139951 | I53: GENERAL FUND
A54: 4735 | B54: 810 | C54: DMV - FIELD SERVICES | D54: 2507 | E54: HIGHWAY FUND AUTHORIZATION | F54: 20253042 | G54: 4735 | H54: 0.3189764194 | I54: HIGHWAY FUND
A55: 4735 | B55: 810 | C55: DMV - FIELD SERVICES | D55: 2510 | E55: REVERSIONS | F55: -5972787 | G55: ↓ | H55: ↓ | I55: ↓
A56: 4735 | B56: 810 | C56: DMV - FIELD SERVICES | D56: 2512 | E56: BALANCE FORWARD TO NEW YEAR | F56: -37198 | G56: 4735 | H56: 0.6807762666 | I56: AGENCY
A57: 4735 | B57: 810 | C57: DMV - FIELD SERVICES | D57: 3324 | E57: MV GOVERNMENTAL SERVICES TAX COMMISSIONS | F57: 24719096 | G57: ↓ | H57: ↓ | I57: ↓
A58: 4735 | B58: 810 | C58: DMV - FIELD SERVICES | D58: 3587 | E58: FEDERAL GRANT-G | F58: 300320 | G58: ↓ | H58: ↓ | I58: ↓
A59: 4735 | B59: 810 | C59: DMV - FIELD SERVICES | D59: 4156 | E59: PENALTIES | F59: 5409135 | G59: ↓ | H59: ↓ | I59: ↓
A60: 4735 | B60: 810 | C60: DMV - FIELD SERVICES | D60: 4203 | E60: PRIOR YEAR REFUNDS | F60: 237 | G60: ↓ | H60: ↓ | I60: ↓
A61: 4735 | B61: 810 | C61: DMV - FIELD SERVICES | D61: 4254 | E61: MISCELLANEOUS REVENUE | F61: 10228 | G61: ↓ | H61: ↓ | I61: ↓
A62: 4735 | B62: 810 | C62: DMV - FIELD SERVICES | D62: 4274 | E62: AGREEMENT INCOME | F62: 37537 | G62: ↓ | H62: ↓ | I62: ↓
A63: 4735 | B63: 810 | C63: DMV - FIELD SERVICES | D63: 4654 | E63: TRANSFER FROM INTERIM FINANCE | F63: 38317 | G63: ↓ | H63: ↓ | I63: ↓
A64: 4735 Total | F64: 44768999
A66: =4745 -> 4745 | B66: 810 | C66: DMV - ADMINISTRATIVE SERVICES | D66: =2507 -> 2507 | E66: HIGHWAY FUND AUTHORIZATION | F66: 5011810 | G66: =4745 -> 4745 | H66: =SUM(F66:F67)/F74 -> 0.3185308758 | I66: HIGHWAY FUND
A67: =4745 -> 4745 | B67: 810 | C67: DMV - ADMINISTRATIVE SERVICES | D67: =2510 -> 2510 | E67: REVERSIONS | F67: -568088 | G67: ↓ | H67: ↓ | I67: ↓
A68: =4745 -> 4745 | B68: 810 | C68: DMV - ADMINISTRATIVE SERVICES | D68: =3601 -> 3601 | E68: LICENSES AND FEES | F68: 5109158 | G68: =4745 -> 4745 | H68: =SUM(F68:F73)/F74 -> 0.6814691242 | I68: AGENCY
A69: =4745 -> 4745 | B69: 810 | C69: DMV - ADMINISTRATIVE SERVICES | D69: =3609 -> 3609 | E69: DRIVERS LICENSES | F69: 3507646 | G69: ↓ | H69: ↓ | I69: ↓
A70: =4745 -> 4745 | B70: 810 | C70: DMV - ADMINISTRATIVE SERVICES | D70: =4201 -> 4201 | E70: REIMBURSEMENT | F70: 581481 | G70: ↓ | H70: ↓ | I70: ↓
A71: =4745 -> 4745 | B71: 810 | C71: DMV - ADMINISTRATIVE SERVICES | D71: =4203 -> 4203 | E71: PRIOR YEAR REFUNDS | F71: 2235 | G71: ↓ | H71: ↓ | I71: ↓
A72: =4745 -> 4745 | B72: 810 | C72: DMV - ADMINISTRATIVE SERVICES | D72: =4235 -> 4235 | E72: COST ALLOCATION REIMBURSEMENT | F72: 305301 | G72: ↓ | H72: ↓ | I72: ↓
A73: =4745 -> 4745 | B73: 810 | C73: DMV - ADMINISTRATIVE SERVICES | D73: =4254 -> 4254 | E73: MISCELLANEOUS REVENUE | F73: 1136 | G73: ↓ | H73: ↓ | I73: ↓
A74: 4745 Total | F74: =SUBTOTAL(9,F66:F73) -> 13950679
A75: =4740 -> 4740 | B75: 810 | C75: DMV - COMPLIANCE ENFORCEMENT | D75: =2507 -> 2507 | E75: HIGHWAY FUND AUTHORIZATION | F75: 4705224 | G75: 4740 | H75: =SUM(F75:F76)/F80 -> 0.961679851 | I75: HIGHWAY FUND
A76: =4740 -> 4740 | B76: 810 | C76: DMV - COMPLIANCE ENFORCEMENT | D76: =2510 -> 2510 | E76: REVERSIONS | F76: -411561 | G76: ↓ | H76: ↓ | I76: ↓
A77: =4740 -> 4740 | B77: 810 | C77: DMV - COMPLIANCE ENFORCEMENT | D77: =3703 -> 3703 | E77: FINGERPRINT FEES | F77: 115271 | G77: ↓ | H77: =SUM(F77:F79)/F80 -> 0.03832014895 | I77: AGENCY
A78: =4740 -> 4740 | B78: 810 | C78: DMV - COMPLIANCE ENFORCEMENT | D78: =4230 -> 4230 | E78: COST ALLOCATION REIMBURSEMENT | F78: 54403 | G78: ↓ | H78: ↓ | I78: ↓
A79: =4740 -> 4740 | B79: 810 | C79: DMV - COMPLIANCE ENFORCEMENT | D79: =4355 -> 4355 | E79: OHV REIMBURSEMENT | F79: 1416 | G79: ↓ | H79: ↓ | I79: ↓
A80: 4740 Total | F80: =SUBTOTAL(9,F75:F79) -> 4464753
A81: =4741 -> 4741 | B81: 810 | C81: DMV - CENTRAL SERVICES | D81: =2501 -> 2501 | E81: APPROPRIATION CONTROL | F81: 18647 | G81: 4741 | H81: =F81/F92 -> 0.001756585831 | I81: GENERAL FUND
A82: =4741 -> 4741 | B82: 810 | C82: DMV - CENTRAL SERVICES | D82: =2507 -> 2507 | E82: HIGHWAY FUND AUTHORIZATION | F82: 5943478 | G82: ↓ | H82: =SUM(F82:F83)/F92 -> 0.4681106712 | I82: HIGHWAY FUND
A83: =4741 -> 4741 | B83: 810 | C83: DMV - CENTRAL SERVICES | D83: =2510 -> 2510 | E83: REVERSIONS | F83: -974259 | G83: ↓ | H83: ↓ | I83: ↓
A84: =4741 -> 4741 | B84: 810 | C84: DMV - CENTRAL SERVICES | D84: =3602 -> 3602 | E84: SALVAGE TITLE FEES | F84: 100218 | G84: ↓ | H84: =SUM(F84:F91)/F92 -> 0.530132743 | I84: AGENCY
A85: =4741 -> 4741 | B85: 810 | C85: DMV - CENTRAL SERVICES | D85: =3701 -> 3701 | E85: SPECIAL PLATES COST ALLOCATION | F85: 6156 | G85: ↓ | H85: ↓ | I85: ↓
A86: =4741 -> 4741 | B86: 810 | C86: DMV - CENTRAL SERVICES | D86: =3721 -> 3721 | E86: EXPEDITED TITLE FEES | F86: 727294 | G86: ↓ | H86: ↓ | I86: ↓
A87: =4741 -> 4741 | B87: 810 | C87: DMV - CENTRAL SERVICES | D87: =3722 -> 3722 | E87: SUBSTITUTE DECAL FEES | F87: 432525 | G87: ↓ | H87: ↓ | I87: ↓
A88: =4741 -> 4741 | B88: 810 | C88: DMV - CENTRAL SERVICES | D88: =3831 -> 3831 | E88: ADMINISTRATION CHARGE | F88: 822590 | G88: ↓ | H88: ↓ | I88: ↓
A89: =4741 -> 4741 | B89: 810 | C89: DMV - CENTRAL SERVICES | D89: =4203 -> 4203 | E89: PRIOR YEAR REFUNDS | F89: 6699 | G89: ↓ | H89: ↓ | I89: ↓
A90: =4741 -> 4741 | B90: 810 | C90: DMV - CENTRAL SERVICES | D90: =4212 -> 4212 | E90: OHV ADMINISTRATION | F90: 282514 | G90: ↓ | H90: ↓ | I90: ↓
A91: =4741 -> 4741 | B91: 810 | C91: DMV - CENTRAL SERVICES | D91: =4721 -> 4721 | E91: TRANS FROM DMV | F91: 3249617 | G91: ↓ | H91: ↓ | I91: ↓
A92: 4741 Total | F92: =SUBTOTAL(9,F81:F91) -> 10615479
A93: =4742 -> 4742 | B93: 810 | C93: DMV - MANAGEMENT SERVICES | D93: =2507 -> 2507 | E93: HIGHWAY FUND AUTHORIZATION | F93: 1482380 | G93: 4742 | H93: =SUM(F93:F94)/F97 -> 0.9974760296 | I93: HIGHWAY FUND
A94: =4742 -> 4742 | B94: 810 | C94: DMV - MANAGEMENT SERVICES | D94: =2510 -> 2510 | E94: REVERSIONS | F94: -118936 | G94: ↓ | H94: ↓ | I94: ↓
A95: =4742 -> 4742 | B95: 810 | C95: DMV - MANAGEMENT SERVICES | D95: =4351 -> 4351 | E95: REIMBURSEMENT FOR AB413 - RTC | F95: 2300 | G95: ↓ | H95: =SUM(F95:F96)/F97 -> 0.002523970403 | I95: AGENCY
A96: =4742 -> 4742 | B96: 810 | C96: DMV - MANAGEMENT SERVICES | D96: =4353 -> 4353 | E96: REIMBURSEMENT ELT-AB309 | F96: 1150 | G96: ↓ | H96: ↓ | I96: ↓
A97: 4742 Total | F97: =SUBTOTAL(9,F93:F96) -> 1366894
A98: =4744 -> 4744 | B98: 810 | C98: DMV - DIRECTOR'S OFFICE | D98: =2507 -> 2507 | E98: HIGHWAY FUND AUTHORIZATION | F98: 2778355 | G98: 4742 | H98: =SUM(F98:F99)/F103 -> 0.5759808933 | I98: HIGHWAY FUND
A99: =4744 -> 4744 | B99: 810 | C99: DMV - DIRECTOR'S OFFICE | D99: =2510 -> 2510 | E99: REVERSIONS | F99: -175237 | G99: ↓ | H99: ↓ | I99: ↓
A100: =4744 -> 4744 | B100: 810 | C100: DMV - DIRECTOR'S OFFICE | D100: =3806 -> 3806 | E100: USER CHARGES - CONVENIENCE FEE | F100: 1824162 | G100: ↓ | H100: =SUM(F100:F102)/F103 -> 0.4240191067 | I100: AGENCY
A101: =4744 -> 4744 | B101: 810 | C101: DMV - DIRECTOR'S OFFICE | D101: =4234 -> 4234 | E101: COST ALLOCATION REIMBURSEMENT | F101: 83791 | G101: ↓ | H101: ↓ | I101: ↓
A102: =4744 -> 4744 | B102: 810 | C102: DMV - DIRECTOR'S OFFICE | D102: =4335 -> 4335 | E102: REIMBURSEMENT OF EXPENSES | F102: 8381 | G102: ↓ | H102: ↓ | I102: ↓
A103: 4744 Total | F103: =SUBTOTAL(9,F98:F102) -> 4519452
A104: =4745 -> 4745 | B104: 810 | C104: DMV - ADMINISTRATIVE SERVICES | D104: =2507 -> 2507 | E104: HIGHWAY FUND AUTHORIZATION | F104: 5011810 | G104: 4745 | H104: =SUM(F104:F105)/F110 -> 0.3256847834 | I104: HIGHWAY FUND
A105: =4745 -> 4745 | B105: 810 | C105: DMV - ADMINISTRATIVE SERVICES | D105: =2510 -> 2510 | E105: REVERSIONS | F105: -568088 | G105: ↓ | H105: ↓ | I105: ↓
A106: =4745 -> 4745 | B106: 810 | C106: DMV - ADMINISTRATIVE SERVICES | D106: =3601 -> 3601 | E106: LICENSES AND FEES | F106: 5109158 | G106: ↓ | H106: =SUM(F106:F109)/F110 -> 0.6743152166 | I106: AGENCY
A107: =4745 -> 4745 | B107: 810 | C107: DMV - ADMINISTRATIVE SERVICES | D107: =3609 -> 3609 | E107: DRIVERS LICENSES | F107: 3507646 | G107: ↓ | H107: ↓ | I107: ↓
A108: =4745 -> 4745 | B108: 810 | C108: DMV - ADMINISTRATIVE SERVICES | D108: =4201 -> 4201 | E108: REIMBURSEMENT | F108: 581481 | G108: ↓ | H108: ↓ | I108: ↓
A109: =4745 -> 4745 | B109: 810 | C109: DMV - ADMINISTRATIVE SERVICES | D109: =4203 -> 4203 | E109: PRIOR YEAR REFUNDS | F109: 2235 | G109: ↓ | H109: ↓ | I109: ↓
F110: =SUM(F104:F109) -> 13644242

Sheet Macro1 (hidden)
A1: Macro1 | B1: Auto_Open
A2: =ALIGNMENT(2,FALSE,1,0,FALSE) -> TRUE | B2: =ERROR(2,Recover) -> TRUE
A3: =BORDER(0,1,1,1,1,0,0,5,5,5,5) -> TRUE | B3: =WORKBOOK.SELECT("Sheet 1") -> 
A4: =PATTERNS(1,0,2,TRUE) -> TRUE | B4: =WINDOW.RESTORE() -> TRUE
A5: =FORMAT.FONT("Arial",11,FALSE,FALSE,FALSE,FALSE,1,FALSE,FALSE) -> TRUE | B5: =WINDOW.SIZE(82.5,42.75) -> TRUE
A6: =RETURN() -> TRUE | B6: =WORKBOOK.HIDE("Macro1",TRUE) -> TRUE
B7: =EDIT.COLOR(1,0,0,0) -> TRUE
A8: Macro10 | B8: =EDIT.COLOR(3,255,0,0) -> TRUE
A9: =ALIGNMENT(2,FALSE,1,0,FALSE) -> TRUE | B9: =EDIT.COLOR(5,128,128,128) -> TRUE
A10: =BORDER(1,1,1,0,0,0,5,5,5,0,0) -> TRUE | B10: =EDIT.COLOR(6,212,208,200) -> TRUE
A11: =PATTERNS(1,0,2,TRUE) -> TRUE | B11: =EDIT.COLOR(4,212,212,212) -> TRUE
A12: =FORMAT.FONT("Arial",11,FALSE,FALSE,FALSE,FALSE,1,FALSE,FALSE) -> TRUE | B12: =EDIT.COLOR(7,247,247,231) -> TRUE
A13: =RETURN() -> TRUE | B13: =EDIT.COLOR(2,255,255,255) -> TRUE
B14: =RUN("Macro27") -> 
A15: Macro11 | B15: =DELETE.NAME("Auto_Open") -> TRUE
A16: =ALIGNMENT(2,FALSE,1,0,FALSE) -> TRUE | B16: =WORKBOOK.SELECT("Sheet 1") -> 
A17: =BORDER(1,1,1,0,0,0,5,5,5,0,0) -> TRUE | B17: =SELECT("R3:R65536") -> TRUE
A18: =PATTERNS(1,0,2,TRUE) -> TRUE | B18: =COLUMN.WIDTH(,,,3) -> TRUE
A19: =FORMAT.FONT("Arial",11,FALSE,FALSE,FALSE,FALSE,1,FALSE,FALSE) -> TRUE | B19: =ROW.HEIGHT(,,,3) -> TRUE
A20: =RETURN() -> TRUE | B20: =SELECT("R1C1") -> TRUE
B21: =WINDOW.MAXIMIZE() -> TRUE
A22: Macro12 | B22: =RETURN() -> TRUE
A23: =ALIGNMENT(2,FALSE,1,0,FALSE) -> TRUE
A24: =BORDER(1,1,1,0,0,0,5,5,5,0,0) -> TRUE
A25: =PATTERNS(1,0,2,TRUE) -> TRUE
A26: =FORMAT.FONT("Arial",11,FALSE,FALSE,FALSE,FALSE,1,FALSE,FALSE) -> TRUE
A27: =RETURN() -> TRUE
A29: Macro13
A30: =ALIGNMENT(2,FALSE,1,0,FALSE) -> TRUE
A31: =BORDER(1,1,1,0,0,0,5,5,5,0,0) -> TRUE
A32: =PATTERNS(1,0,2,TRUE) -> TRUE
A33: =FORMAT.FONT("Arial",11,FALSE,FALSE,FALSE,FALSE,1,FALSE,FALSE) -> TRUE
A34: =RETURN() -> TRUE
A36: Macro14
A37: =ALIGNMENT(2,FALSE,1,0,FALSE) -> TRUE
A38: =BORDER(1,1,1,0,0,0,5,5,5,0,0) -> TRUE
A39: =PATTERNS(1,0,2,TRUE) -> TRUE
A40: =FORMAT.FONT("Arial",11,FALSE,FALSE,FALSE,FALSE,1,FALSE,FALSE) -> TRUE
A41: =RETURN() -> TRUE
A43: Macro15
A44: =ALIGNMENT(3,TRUE,3,0,FALSE) -> TRUE
A45: =BORDER(0,1,1,1,1,0,0,1,1,1,1) -> TRUE
A46: =PATTERNS(1,0,6,TRUE) -> TRUE
A47: =FORMAT.FONT("Arial",11,FALSE,FALSE,FALSE,FALSE,1,FALSE,FALSE) -> TRUE
A48: =RETURN() -> TRUE
A50: Macro16
A51: =ALIGNMENT(3,TRUE,3,0,FALSE) -> TRUE
A52: =BORDER(0,1,1,1,1,0,0,1,1,1,1) -> TRUE
A53: =PATTERNS(1,0,7,TRUE) -> TRUE
A54: =FORMAT.FONT("Arial",11,FALSE,FALSE,FALSE,FALSE,1,FALSE,FALSE) -> TRUE
A55: =RETURN() -> TRUE
A57: Macro17
A58: =ALIGNMENT(3,TRUE,3,0,FALSE) -> TRUE
A59: =BORDER(0,1,1,1,1,0,0,1,1,1,1) -> TRUE
A60: =PATTERNS(1,0,7,TRUE) -> TRUE
A61: =FORMAT.FONT("Arial",11,FALSE,FALSE,FALSE,FALSE,1,FALSE,FALSE) -> TRUE
A62: =RETURN() -> TRUE
A64: Macro18
A65: =ALIGNMENT(3,TRUE,3,0,FALSE) -> TRUE
A66: =BORDER(0,1,1,1,1,0,0,1,1,1,1) -> TRUE
A67: =PATTERNS(1,0,7,TRUE) -> TRUE
A68: =FORMAT.FONT("Arial",11,FALSE,FALSE,FALSE,FALSE,1,FALSE,FALSE) -> TRUE
A69: =RETURN() -> TRUE
A71: Macro19
A72: =ALIGNMENT(3,TRUE,3,0,FALSE) -> TRUE
A73: =BORDER(0,1,1,1,1,0,0,1,1,1,1) -> TRUE
A74: =PATTERNS(1,0,7,TRUE) -> TRUE
A75: =FORMAT.FONT("Arial",11,FALSE,FALSE,FALSE,FALSE,1,FALSE,FALSE) -> TRUE
A76: =RETURN() -> TRUE
A78: Macro2
A79: =ALIGNMENT(2,FALSE,1,0,FALSE) -> TRUE
A80: =BORDER(0,1,1,1,1,0,0,5,5,5,5) -> TRUE
A81: =PATTERNS(1,0,2,TRUE) -> TRUE
A82: =FORMAT.FONT("Arial",10,FALSE,FALSE,FALSE,FALSE,1,FALSE,FALSE) -> TRUE
A83: =RETURN() -> TRUE
A85: Macro20
A86: =ALIGNMENT(3,TRUE,3,0,FALSE) -> TRUE
A87: =BORDER(0,1,1,1,1,0,0,1,1,1,1) -> TRUE
A88: =PATTERNS(1,0,6,TRUE) -> TRUE
A89: =FORMAT.FONT("Arial",11,FALSE,FALSE,FALSE,FALSE,1,FALSE,FALSE) -> TRUE
A90: =RETURN() -> TRUE
A92: Macro21
A93: =ALIGNMENT(3,TRUE,3,0,FALSE) -> TRUE
A94: =BORDER(0,1,1,1,1,0,0,1,1,1,1) -> TRUE
A95: =PATTERNS(1,0,6,TRUE) -> TRUE
A96: =FORMAT.FONT("Arial",11,FALSE,FALSE,FALSE,FALSE,1,FALSE,FALSE) -> TRUE
A97: =RETURN() -> TRUE
A99: Macro22
A100: =ALIGNMENT(3,TRUE,3,0,FALSE) -> TRUE
A101: =BORDER(0,1,1,1,1,0,0,1,1,1,1) -> TRUE
A102: =PATTERNS(1,0,6,TRUE) -> TRUE
A103: =FORMAT.FONT("Arial",11,FALSE,FALSE,FALSE,FALSE,1,FALSE,FALSE) -> TRUE
A104: =RETURN() -> TRUE
A106: Macro23
A107: =ALIGNMENT(3,TRUE,3,0,FALSE) -> TRUE
A108: =BORDER(0,1,1,1,1,0,0,1,1,1,1) -> TRUE
A109: =PATTERNS(1,0,6,TRUE) -> TRUE
A110: =FORMAT.FONT("Arial",11,FALSE,FALSE,FALSE,FALSE,1,FALSE,FALSE) -> TRUE
A111: =RETURN() -> TRUE
A113: Macro24
A114: =ALIGNMENT(3,TRUE,3,0,FALSE) -> TRUE
A115: =BORDER(0,1,1,1,1,0,0,1,1,1,1) -> TRUE
A116: =PATTERNS(1,0,6,TRUE) -> TRUE
A117: =FORMAT.FONT("Arial",11,FALSE,FALSE,FALSE,FALSE,1,FALSE,FALSE) -> TRUE
A118: =RETURN() -> TRUE
A120: Macro25
A121: =ALIGNMENT(4,FALSE,1,0,FALSE) -> TRUE
A122: =BORDER(0,1,1,1,1,0,0,5,5,5,5) -> TRUE
A123: =PATTERNS(1,0,7,TRUE) -> TRUE
A124: =FORMAT.FONT("Arial",11,FALSE,FALSE,FALSE,FALSE,1,FALSE,FALSE) -> TRUE
A125: =RETURN() -> TRUE
A127: Macro26
A128: =ALIGNMENT(4,FALSE,1,0,FALSE) -> TRUE
A129: =BORDER(0,1,1,1,1,0,0,5,5,5,5) -> TRUE
A130: =PATTERNS(1,0,2,TRUE) -> TRUE
A131: =FORMAT.FONT("Arial",10,FALSE,FALSE,FALSE,FALSE,1,FALSE,FALSE) -> TRUE
A132: =RETURN() -> TRUE
A134: Macro27
A135: =WORKBOOK.SELECT("Sheet 1") -> 
A136: =SELECT("R6C1:R244C1,R6C3:R244C9,R6C13:R244C13,R6C17:R244C17") -> TRUE
A137: =RUN("Macro1") -> 
A138: =SELECT("R6C2:R244C2,R6C10:R244C11,R6C14:R244C16") -> TRUE
A139: =RUN("Macro2") -> 
A140: =SELECT("R6C12:R244C12") -> TRUE
A141: =RUN("Macro3") -> 
A142: =SELECT("R6C6:R20C6") -> TRUE
A143: =RUN("Macro4") -> 
A144: =SELECT("R22C6:R33C6") -> TRUE
A145: =RUN("Macro5") -> 
A146: =SELECT("R35C6:R99C6") -> TRUE
A147: =RUN("Macro6") -> 
A148: =SELECT("R101C6:R111C6") -> TRUE
A149: =RUN("Macro7") -> 
A150: =SELECT("R113C6:R118C6") -> TRUE
A151: =RUN("Macro8") -> 
A152: =SELECT("R120C6:R154C6") -> TRUE
A153: =RUN("Macro9") -> 
A154: =SELECT("R156C6:R168C6") -> TRUE
A155: =RUN("Macro10") -> 
A156: =SELECT("R170C6:R174C6") -> TRUE
A157: =RUN("Macro11") -> 
A158: =SELECT("R176C6:R186C6") -> TRUE
A159: =RUN("Macro12") -> 
A160: =SELECT("R188C6:R221C6") -> TRUE
A161: =RUN("Macro13") -> 
A162: =SELECT("R223C6:R242C6") -> TRUE
A163: =RUN("Macro14") -> 
A164: =SELECT("R244C12") -> TRUE
A165: =FORMAT.NUMBER("""Grand Total: ""##,###,###,###,##0.00;""Grand Total: ""-##,###,###,###,##0.00") -> TRUE
A166: =SELECT("R21C12,R34C12,R100C12,R112C12,R119C12,R155C12,R169C12,R175C12,R187C12,R222C12,R243C12") -> TRUE
A167: =FORMAT.NUMBER("""Sum: ""##,###,###,###,##0.00;""Sum: ""-##,###,###,###,##0.00") -> TRUE
A168: =SELECT("R21C1,R21C2,R21C3,R21C4,R21C5,R21C6,R21C7,R21C8,R21C9,R21C10,R21C11,R21C13,R21C14,R21C15,R21C16,R21C17,R34C1,R34C2,R34C3,R34C4,R34C5,R34C6,R34C7,R34C8,R34C9,R34C10,R34C11,R34C13,R34C14,R34C15,R34C16") -> TRUE
A169: =FORMAT.NUMBER("##,###,###,###,##0.00;-##,###,###,###,##0.00") -> TRUE
A170: =SELECT("R34C17,R100C1,R100C2,R100C3,R100C4,R100C5,R100C6,R100C7,R100C8,R100C9,R100C10,R100C11,R100C13,R100C14,R100C15,R100C16,R100C17,R112C1,R112C2,R112C3,R112C4,R112C5,R112C6,R112C7,R112C8,R112C9,R112C10") -> TRUE
A171: =FORMAT.NUMBER("##,###,###,###,##0.00;-##,###,###,###,##0.00") -> TRUE
A172: =SELECT("R112C11,R112C13,R112C14,R112C15,R112C16,R112C17,R119C1,R119C2,R119C3,R119C4,R119C5,R119C6,R119C7,R119C8,R119C9,R119C10,R119C11,R119C13,R119C14,R119C15,R119C16,R119C17,R155C1,R155C2,R155C3,R155C4") -> TRUE
A173: =FORMAT.NUMBER("##,###,###,###,##0.00;-##,###,###,###,##0.00") -> TRUE
A174: =SELECT("R155C5,R155C6,R155C7,R155C8,R155C9,R155C10,R155C11,R155C13,R155C14,R155C15,R155C16,R155C17,R169C1,R169C2,R169C3,R169C4,R169C5,R169C6,R169C7,R169C8,R169C9,R169C10,R169C11,R169C13,R169C14,R169C15") -> TRUE
A175: =FORMAT.NUMBER("##,###,###,###,##0.00;-##,###,###,###,##0.00") -> TRUE
A176: =SELECT("R169C16,R169C17,R175C1,R175C2,R175C3,R175C4,R175C5,R175C6,R175C7,R175C8,R175C9,R175C10,R175C11,R175C13,R175C14,R175C15,R175C16,R175C17,R187C1,R187C2,R187C3,R187C4,R187C5,R187C6,R187C7,R187C8,R187C9") -> TRUE
A177: =FORMAT.NUMBER("##,###,###,###,##0.00;-##,###,###,###,##0.00") -> TRUE
A178: =SELECT("R187C10,R187C11,R187C13,R187C14,R187C15,R187C16,R187C17,R222C1,R222C2,R222C3,R222C4,R222C5,R222C6,R222C7,R222C8,R222C9,R222C10,R222C11,R222C13,R222C14,R222C15,R222C16,R222C17,R243C1,R243C2,R243C3") -> TRUE
A179: =FORMAT.NUMBER("##,###,###,###,##0.00;-##,###,###,###,##0.00") -> TRUE
A180: =SELECT("R243C4,R243C5,R243C6,R243C7,R243C8,R243C9,R243C10,R243C11,R243C13,R243C14,R243C15,R243C16,R243C17,R244C1,R244C2,R244C3,R244C4,R244C5,R244C6,R244C7,R244C8,R244C9,R244C10,R244C11,R244C13,R244C14,R244C15") -> TRUE
A181: =FORMAT.NUMBER("##,###,###,###,##0.00;-##,###,###,###,##0.00") -> TRUE
A182: =SELECT("R244C16,R244C17") -> TRUE
A183: =FORMAT.NUMBER("##,###,###,###,##0.00;-##,###,###,###,##0.00") -> TRUE
A184: =SELECT("R6C12:R244C12") -> TRUE
A185: =FORMAT.NUMBER("##,###,###,###,##0.00") -> TRUE
A186: =SELECT("R6C16:R244C16") -> TRUE
A187: =FORMAT.NUMBER("dd-mmm-yyyy") -> TRUE
A188: =SELECT("R3C1,R5C2") -> TRUE
A189: =RUN("Macro15") -> 
A190: =SELECT("R5C1,R5C3:R5C4,R5C8:R5C9,R5C13,R5C17") -> TRUE
A191: =RUN("Macro16") -> 
A192: =SELECT("R5C5") -> TRUE
A193: =RUN("Macro17") -> 
A194: =SELECT("R5C6") -> TRUE
A195: =RUN("Macro18") -> 
A196: =SELECT("R5C7") -> TRUE
A197: =RUN("Macro19") -> 
A198: =SELECT("R5C10,R5C16") -> TRUE
A199: =RUN("Macro20") -> 
A200: =SELECT("R5C11") -> TRUE
A201: =RUN("Macro21") -> 
A202: =SELECT("R5C12") -> TRUE
A203: =RUN("Macro22") -> 
A204: =SELECT("R5C14") -> TRUE
A205: =RUN("Macro23") -> 
A206: =SELECT("R5C15") -> TRUE
A207: =RUN("Macro24") -> 
A208: =SELECT("R21C1,R21C2,R21C3,R21C4,R21C5,R21C6,R21C7,R21C8,R21C9,R21C10,R21C11,R21C12,R21C13,R21C14,R21C15,R21C16,R21C17,R34C1,R34C2,R34C3,R34C4,R34C5,R34C6,R34C7,R34C8,R34C9,R34C10,R34C11,R34C12,R34C13,R34C14") -> TRUE
A209: =RUN("Macro25") -> 
A210: =SELECT("R34C15,R34C16,R34C17,R100C1,R100C2,R100C3,R100C4,R100C5,R100C6,R100C7,R100C8,R100C9,R100C10,R100C11,R100C12,R100C13,R100C14,R100C15,R100C16,R100C17,R112C1,R112C2,R112C3,R112C4,R112C5,R112C6,R112C7") -> TRUE
A211: =RUN("Macro25") -> 
A212: =SELECT("R112C8,R112C9,R112C10,R112C11,R112C12,R112C13,R112C14,R112C15,R112C16,R112C17,R119C1,R119C2,R119C3,R119C4,R119C5,R119C6,R119C7,R119C8,R119C9,R119C10,R119C11,R119C12,R119C13,R119C14,R119C15,R119C16") -> TRUE
A213: =RUN("Macro25") -> 
A214: =SELECT("R119C17,R155C1,R155C2,R155C3,R155C4,R155C5,R155C6,R155C7,R155C8,R155C9,R155C10,R155C11,R155C12,R155C13,R155C14,R155C15,R155C16,R155C17,R169C1,R169C2,R169C3,R169C4,R169C5,R169C6,R169C7,R169C8,R169C9") -> TRUE
A215: =RUN("Macro25") -> 
A216: =SELECT("R169C10,R169C11,R169C12,R169C13,R169C14,R169C15,R169C16,R169C17,R175C1,R175C2,R175C3,R175C4,R175C5,R175C6,R175C7,R175C8,R175C9,R175C10,R175C11,R175C12,R175C13,R175C14,R175C15,R175C16,R175C17,R187C1") -> TRUE
... 53 more rows
